Workbook

Sheet PFP
A1: PROPOSTA FINANCEIRA DO PROJETO | J1: CODIGO:
J2: PFP
A3: NOME DA CONSULTORA:
A5: PROJETO: | F5: CONTRATANTE: | J5: BASE:
A6: CONTRATAÇÃO DOS SERVIÇOS DE APOIO À FISCALIZAÇÃO PARA EXECUÇÃO DAS OBRAS DE ENGENHARIA, VISANDO A IMPLANTAÇÃO DA TOMADA D ÁGUA DO RC-500 E DO CANAL CP 0 500/2 - PERIMETRO DE IRRIGAÇÃO SALITRE, NO ESTADO DA BAHIA. | F6: CODEVASF (SEDE) | J6: SICRO ABR/2025; SINAPI MAI/2025; EMBASA JAN/2025; ORSE ABR/2025; SUDECAP ABR/2025;SETOP JAN/2025. DATA-BASE ORÇAMENTO: JUL/2025
A7: Base | B7: Cod2 | C7: Código | D7: Categoria / Insumo | E7: Uni | F7: Qde | G7: CUD | H7: PU | I7: FatorK | J7: CT | K7: PT | L7: Encargos COMP E ADICIONAIS | M7: SOCIAIS | N7: TOTAIS | P7: Encargos Comp e Adicionais
A8: SICRO | B8: MO1 | C8: P8066 | D8: Engenheiro Pleno | E8: mês | F8: 26 | G8: =VLOOKUP(C8,'MDO - DNIT'!A:Y,4,0) -> 14740.22 | H8: =G8*I8 -> 31802.02465 | I8: ='PFP2.1_FatorKa'!$E$36 -> 2.1575 | J8: =G8*F8 -> 383245.72 | K8: =ROUND(J8*I8,2) -> 826852.64 | L8: =N8-M8 -> 1026.89 | M8: 13451.98 | N8: 14478.87 | P8: =VLOOKUP(C8,'MDO - DNIT'!A:Z,26,0) -> 1091.79
A9: SICRO | B9: MO1 | C9: P8065 | D9: Engenheiro Júnior | E9: mês | F9: 40 | G9: =VLOOKUP(C9,'MDO - DNIT'!A:Y,4,0) -> 12903 | H9: =G9*I9 -> 27838.2225 | I9: ='PFP2.1_FatorKa'!$E$36 -> 2.1575 | J9: =G9*F9 -> 516120 | K9: =ROUND(J9*I9,2) -> 1113528.9 | P9: =VLOOKUP(C9,'MDO - DNIT'!A:Z,26,0) -> 1091.8
A10: SICRO | B10: MO1 | C10: P8026 | D10: Auxiliar de Administrativo | E10: mês | F10: =20*2 -> 40 | G10: =VLOOKUP(C10,'MDO - DNIT'!A:Y,4,0) -> 1931.52 | H10: 4167.2544 | I10: ='PFP2.1_FatorKa'!$E$36 -> 2.1575 | J10: 77260.8 | K10: =ROUND(J10*I10,2) -> 166690.18 | L10: 1070.18 | M10: 2450.48 | N10: 3520.66 | P10: =VLOOKUP(C10,'MDO - DNIT'!A:Z,26,0) -> 1198.58
A11: SICRO | B11: MO1 | C11: P8147 | D11: Técnico - Profissional Especial | E11: mês | F11: =2*20 -> 40 | G11: =VLOOKUP(C11,'MDO - DNIT'!A:Y,4,0) -> 3268.63 | H11: 7052.069225 | I11: ='PFP2.1_FatorKa'!$E$36 -> 2.1575 | J11: 130745.2 | K11: 282082.77 | L11: 1070.18 | M11: 2450.48 | N11: 3520.66 | P11: =VLOOKUP(C11,'MDO - DNIT'!A:Z,26,0) -> 1147.78
A12: SICRO | B12: MO1 | C12: P8147 | D12: Técnico Mecânico | E12: mês | F12: 8 | G12: =VLOOKUP(C12,'MDO - DNIT'!A:Y,4,0) -> 3268.63 | H12: 7052.069225 | I12: ='PFP2.1_FatorKa'!$E$36 -> 2.1575 | J12: 26149.04 | K12: 56416.55 | P12: =VLOOKUP(C12,'MDO - DNIT'!A:Z,26,0) -> 1147.78
A13: SICRO | B13: MO1 | C13: P8163 | D13: Topógrafo | E13: mês | F13: 20 | G13: =VLOOKUP(C13,'MDO - DNIT'!A:Y,4,0) -> 2558.11 | H13: 5519.122325 | I13: ='PFP2.1_FatorKa'!$E$36 -> 2.1575 | J13: 51162.2 | K13: 110382.45 | P13: =VLOOKUP(C13,'MDO - DNIT'!A:Z,26,0) -> 1190.81
A14: SICRO | B14: MO1 | C14: P8028 | D14: Auxiliar topografo | E14: mês | F14: 20 | G14: =VLOOKUP(C14,'MDO - DNIT'!A:Y,4,0) -> 1665.28 | H14: 3592.8416 | I14: ='PFP2.1_FatorKa'!$E$36 -> 2.1575 | J14: 33305.6 | K14: 71856.83 | P14: =VLOOKUP(C14,'MDO - DNIT'!A:Z,26,0) -> 1248.47
A15: SICRO | B15: MO1 | C15: P8147 | D15: Técnico - Profissional Especial (Desenhista) | E15: mês | F15: 20 | G15: =VLOOKUP(C15,'MDO - DNIT'!A:Y,4,0) -> 3268.63 | H15: 7052.069225 | I15: ='PFP2.1_FatorKa'!$E$36 -> 2.1575 | J15: 65372.6 | K15: 141041.38 | P15: =VLOOKUP(C15,'MDO - DNIT'!A:Z,26,0) -> 1147.78
A16: SICRO | B16: MO1 | C16: P8098 | D16: Técnico Auxiliar (Laboratorista) | E16: mês | F16: =2*20 -> 40 | G16: =VLOOKUP(C16,'MDO - DNIT'!A:Y,4,0) -> 2449.31 | H16: 5284.386325 | I16: ='PFP2.1_FatorKa'!$E$36 -> 2.1575 | J16: 97972.4 | K16: 211375.45 | P16: =VLOOKUP(C16,'MDO - DNIT'!A:Z,26,0) -> 1197.15
A17: SICRO | B17: MO1 | C17: P8151 | D17: Tecnico Segurança do Trabalho | E17: mês | F17: 20 | G17: =VLOOKUP(C17,'MDO - DNIT'!A:Y,4,0) -> 4601.83 | H17: 9928.448225 | I17: ='PFP2.1_FatorKa'!$E$36 -> 2.1575 | J17: 92036.6 | K17: 198568.96 | P17: =VLOOKUP(C17,'MDO - DNIT'!A:Z,26,0) -> 1095.74
A18: SICRO | B18: MO1 | C18: P8143 | D18: Técnico Ambiental | E18: mês | F18: 20 | G18: =VLOOKUP(C18,'MDO - DNIT'!A:Y,4,0) -> 2987.19 | H18: 6444.862425 | I18: ='PFP2.1_FatorKa'!$E$36 -> 2.1575 | J18: 59743.8 | K18: 128897.25 | P18: =VLOOKUP(C18,'MDO - DNIT'!A:Z,26,0) -> 1165.7
A19: SICRO | B19: MO1 | C19: P8021 | D19: Assistente Social | E19: mês | F19: 20 | G19: =VLOOKUP(C19,'MDO - DNIT'!A:Y,4,0) -> 7579.69 | H19: 16353.18117 | I19: ='PFP2.1_FatorKa'!$E$36 -> 2.1575 | J19: 151593.8 | K19: 327063.62 | P19: =VLOOKUP(C19,'MDO - DNIT'!A:Z,26,0) -> 1092.27
A20: CODE | B20: MO2 | C20: PROP | D20: Consultoria Engenheiro - Hidráulico | E20: und | F20: 3 | G20: ='PFP1.3_Ger'!G11 -> 10447.22727 | H20: 12642.18972 | I20: =PFP3_FatorKd!$E$17 -> 1.2101 | J20: 31341.68182 | K20: 37926.57
A21: CODE | B21: MO2 | C21: PROP | D21: Consultoria Engenheiro - Geoténico | E21: und | F21: 3 | G21: ='PFP1.3_Ger'!G17 -> 10447.22727 | H21: 12642.18972 | I21: =PFP3_FatorKd!$E$17 -> 1.2101 | J21: 31341.68182 | K21: 37926.57 | P21: A mão de obra do Sinapi já possui encargos sociais, por isso deve se usar o "fator K" sem encargos
A22: SICRO | B22: LO | C22: B8958 | D22: Cesta de Instalações Topografia | E22: mês | F22: 20 | G22: ='C.G - DNIT'!G23 -> 5150.27 | H22: =G22*I22 -> 6232.341727 | I22: =PFP3_FatorKd!$E$17 -> 1.2101 | J22: 103005.4 | K22: 124646.83
A23: CODE | B23: LO | C23: PROP | D23: PICK-UP - CD 4X4 Diesel | E23: mês | F23: 40 | G23: ='CPU-VEICULO_PickUp'!C52 -> 3840.702352 | H23: 4647.633916 | I23: =PFP3_FatorKd!$E$17 -> 1.2101 | J23: 153628.0941 | K23: 185905.36
A24: CODE | B24: LO | C24: PROP | D24: Veículo leve - 71 a 115 CV | E24: mês | F24: =26+20+20+20 -> 86 | G24: ='CPU-VEICULO_Leve'!D49 -> 1728.735447 | H24: 2091.942765 | I24: =PFP3_FatorKd!$E$17 -> 1.2101 | J24: 148671.2485 | K24: 179907.08
A25: CODE | B25: LO | C25: PROP | D25: Passagem (ida e volta) | E25: und | F25: 9 | G25: ='Cotação Voos'!C106 -> 2435.416667 | H25: 2947.097708 | I25: =PFP3_FatorKd!$E$17 -> 1.2101 | J25: 21918.75 | K25: 26523.88
A26: CODE | B26: LO | C26: PROP | D26: Diaria | E26: und | F26: =5*F25 -> 45 | G26: ='CPU HOSPEDAGEM'!C19 -> 192.3651894 | H26: 232.7811157 | I26: =PFP3_FatorKd!$E$17 -> 1.2101 | J26: 8656.433523 | K26: 10475.15
A27: CODE | B27: LO | C27: PROP | D27: Infraestrutura e Equipamentos de Escritório | E27: und | F27: 1 | G27: ='PFP1.2_Equi_div'!G11 -> 130769.08 | H27: =G27*I27 -> 158243.6637 | I27: =PFP3_FatorKd!$E$17 -> 1.2101 | J27: =G27*F27 -> 130769.08 | K27: 158243.66
A28: CODE | B28: EM | C28: PROP | D28: Ensaios de Solo e Concreto | E28: und | F28: 1 | G28: - | H28: ='PFP1.4_Ensaios_Solo_Concreto'!I19 -> 24587.67357 | I28: - | J28: - | K28: =ROUND(H28*F28,2) -> 24587.67
A29: SICRO | B29: EC | C29: SICRO | D29: Encargos Complementares Adicionais | E29: mês | F29: =SUM(F8:F19) -> 314 | G29: =AVERAGE(P8:P19) -> 1151.304167 | H29: 1393.193172 | I29: =PFP3_FatorKd!$E$17 -> 1.2101 | J29: 361509.5083 | K29: 437462.66
A30: TOTAL DOS CUSTOS DIRETOS | H30: =SUM(J8:J29) -> 2675549.638
A31: TOTAL DOS ENCARGOS E DESPESAS DIVERSAS | H31: =H32-H30 -> 2158225.102
A32: TOTAL DA PROPOSTA A PREÇO GLOBAL | H32: =SUM(K8:K27,K29) -> 4833774.74
A33: TOTAL DA PROPOSTA A PREÇO UNITÁRIO | H33: =K28 -> 24587.67
A34: TOTAL DA PROPOSTA | H34: =H32+H33 -> 4858362.41 | P34: =H34/118800000 -> 0.04089530648
A35: OBSERVAÇÃO:
A36: *Encargos Complementares e adicionais já incluem auxílio transporte
A37: Alocar os Insumos MO, com respectivo FatorK, dentro da categoria de vínculo contratual (celetista, autonomo, societario)
A38: Uni - unidade de medição do insumo;
A39: Qde - Quantidade do Insumo (não pode ocorrer alteração pela Licitante)
A40: CUD - Custo Unitário Direto do Insumo (sem encargos, taxas e impostos, valor não pode ser maior que o Orçado pela Codevasf)
A41: CT - Custo Total (sem encargos, taxas e impostos) - CT = Qde x CUD
A42: FatorK - Taxa de Ressarcimento de Despesas e Encargos (detalhar composição nas Planilhas "PFP2.1", "PFP2.2", "PFP3")
A43: PU - Preço Unitário do Insumo (incluído encargos, taxas e impostos) - PU = CUD x FatorK
A44: PT - Preço Total do Insumo (incluído encargos, taxas e impostos) - PT = Qde x PU
A45: P - Profissionais nível superior nas áreas de Engenharia, Química, Arquitetura, Agronomia e Veterinária, conforme disposições da Lei 4.950-A/66
A46: S - Profissionais de nível superior nas demais áreas de atuação, incluindo Arqueólogo, Biólogo, Geógrafo e Sociólogo
A47: T - Profissionais de nível médio técnico nas diversas áreas de atuação
A48: A - Profissionais de nível médio de apoio técnico-administrativo
A50: Observações:
A51: 1- Sistemas oficiais de referência de preços utilizados
A52: Tabela Consultiva do DNIT-Out/2022.
A53: SINAPI/GO - 11/2022

Sheet PFP1.1Serv Graficos
A3: Serviços Gráficos
A5: Serviço | C5: Referencia | D5: Código | E5: Valor | H5: 1 Vol Impressão Rel Final
A6: Impressão colorida | C6: SETOP/COMPOSIÇÃO | D6: CO-2019 | E6: 1.8 | G6: Preto | H6: =C17*E7 -> 97.65
A7: Impressão preta | C7: SETOP/COMPOSIÇÃO | D7: CO-2017 | E7: 0.31 | G7: Colorida | H7: =D17*E6 -> 63
A8: Encadernação até 350 fls. | C8: EMBASA/COMPOSIÇÃO | D8: 30.02.30 / 30.02.27 | E8: =20+7.2 -> 27.2 | F8: Foi considerado a soma de 2 composições, com encadernação de 250 e 100 folhas | G8: Encader | H8: =E8 -> 27.2
A9: Encadernação até 50 fls. | C9: EMBASA/COMPOSIÇÃO | D9: 30.02.26 | E9: 6 | G9: Total | H9: =SUM(H6:H8) -> 187.85
A10: Encadernação até 100 fls. | C10: EMBASA/COMPOSIÇÃO | D10: 30.02.27 | E10: 7.2
A11: Impressão em A3 | C11: SETOP/COMPOSIÇÃO | D11: CO-2020 / CO-2018 | E11: =(4.3+0.84)/2 -> 2.57 | F11: Foi considerado o valor médio entre a impressão colorida e preta/branco | H11: 1 Rel A3
A12: Impressão em A1 | C12: - | D12: - | E12: =2*E11 -> 5.14 | F12: Foi considerado o dobro do valor da impressão A3 | G12: Impresão A3 | H12: =B18*E11 -> 642.5
A13: Impressão em A0 | C13: - | D13: - | E13: =2*E12 -> 10.28 | F13: Foi considerado o dobro do valor da impressão A1 | G13: Encader | H13: =E8 -> 27.2
G14: Total | H14: =SUM(H12:H13) -> 669.7
A15: RELATÓRIO FINAL
A16: Qtd Rel Final (Volumes) | B16: Qtd Pág por Volume | C16: Qtd Impressão Preta | D16: Qtd Impressão Color | E16: Custo Unitário Parcial
A17: 3 | B17: 350 | C17: =B17*0.9 -> 315 | D17: =B17*0.1 -> 35 | E17: =H9*A17 -> 563.55 | F17: Estimamos 90% do total de páginas de impressões pretas e 10% coloridas.
A18: Peça Gráfica - Impressão em A3 | B18: 250 | E18: =ROUND(((B18*E11)+E8),2) -> 669.7
A19: Peça Gráfica - Impressão em A1 | B19: 50 | E19: =ROUND(((B19*E12)+E8),2) -> 284.2
A20: Custo Unitário Rel Final | E20: =SUM(E17:E19) -> 1517.45
A23: MINUTA DO RELATÓRIO FINAL
A24: Qtd Rel Final (Volumes) | B24: Qtd Pág por Volume | C24: Qtd Impressão Preta | D24: Qtd Impressão Color | E24: Custo Unitário Parcial
A25: 3 | B25: 350 | C25: =B25*0.9 -> 315 | D25: =B25*0.1 -> 35 | E25: =H9*A25 -> 563.55
A26: Peça Gráfica - Impressão em A4 | B26: 350 | E26: =(E7*B26)+H8 -> 135.7
A28: Custo Unitário Rel Final | E28: =SUM(E25:E26) -> 699.25
A31: Descrição | B31: Qtd Pág por Volume | C31: Qtd Impressão Preta | D31: Qtd Impressão Color | E31: Custo Unitário Total
A32: Relatório Mensal | B32: 50 | C32: =B32*0.9 -> 45 | D32: =B32*0.1 -> 5 | E32: =H36 -> 28.95 | F32: Estimamos a quantidade de página por volume. | H32: 1 Rel Mensal | I32: 1 Rel Parcial
A33: Relatório Parcial | B33: 100 | C33: =B33*0.9 -> 90 | D33: =B33*0.1 -> 10 | E33: =I36 -> 53.1 | F33: Estimamos a quantidade de página por volume. | H33: =C32*E7 -> 13.95 | I33: =C33*E7 -> 27.9
A34: Minuta do Relatório Final | E34: =E28 -> 699.25 | H34: =D32*E6 -> 9 | I34: =D33*E6 -> 18
A35: Relatório Final | E35: =E20 -> 1517.45 | H35: =E9 -> 6 | I35: =E10 -> 7.2
G36: Total | H36: =SUM(H33:H35) -> 28.95 | I36: =SUM(I33:I35) -> 53.1
A38: OBS: A quantidade de páginas por volume foi estimada
A39: 1 - Relatório Mensal: Será considerado 01 Volume com uma quantidade estimada de 50 páginas.
A40: 2 - Relatório Parcial: Será considerado 01 Volumes com uma quantidade estimada de 100 páginas.
A41: 3 - Minuta do Relatório Final: Será considerado 03 Volumes com uma quantidade estimada de 350 páginas, cada, + 01 Volume de desenho em Folha A4, com estimativa de 350 páginas.
A42: 4 - Relatório Final: Será considerado 03 Volumes com uma quantidade estimada de 350 páginas, cada, + 01 Volume de desenho em Folha A3, com estimativa de 350 páginas.

Sheet PFP1.2_Equi_div
A1: RECURSOS GERAIS | G1: CODIGO:
G2: PFP1.2
A3: NOME DA EMPRESA:
A5: PROJETO: | E5: CONTRATANTE: | G5: =PFP!J5 -> BASE:
A6: =PFP!A6 -> CONTRATAÇÃO DOS SERVIÇOS DE APOIO À FISCALIZAÇÃO PARA EXECUÇÃO DAS OBRAS DE ENGENHARIA, VISANDO A IMPLANTAÇÃO DA TOMADA D ÁGUA DO RC-500 E DO CANAL CP 0 500/2 - PERIMETRO DE IRRIGAÇÃO SALITRE, NO ESTADO DA BAHIA. | E6: CODEVASF (SEDE) | G6: =PFP!J6 -> SICRO ABR/2025; SINAPI MAI/2025; EMBASA JAN/2025; ORSE ABR/2025; SUDECAP ABR/2025;SETOP JAN/2025. DATA-BASE ORÇAMENTO: JUL/2025
A7: Cod. | B7: Base | C7: Insumos | D7: Uni | E7: Qde | F7: Preço Unitário (PU) | G7: Preço Total (PT)
A8: PROP | B8: CODE | C8: Aluguel de notebook | D8: mês | E8: =26+20+20+20+20+20+20+20+20+20 -> 206 | F8: ='AUX - NOTEBOOK'!H10 -> 92.05 | G8: =E8*F8 -> 18962.3
A9: PROP | B9: CODE | C9: Aluguel de impressora | D9: mês | E9: 26 | F9: ='AUX - IMPRESSORA'!H10 -> 54.13 | G9: =E9*F9 -> 1407.38
A10: PROP | B10: CODE | C10: Escritório | D10: mês | E10: 20 | F10: ='CPU ESCRIT. CONTAINER'!C14 -> 5519.97 | G10: 110399.4
A11: TOTAL | G11: =SUM(G8:G10) -> 130769.08

Sheet PFP1.3_Ger
A1: RECURSOS GERAIS | G1: CODIGO:
G2: PFP1.3
A3: NOME DA EMPRESA:
A5: PROJETO: | E5: CONTRATANTE: | G5: =PFP!J5 -> BASE:
A6: =PFP!A6 -> CONTRATAÇÃO DOS SERVIÇOS DE APOIO À FISCALIZAÇÃO PARA EXECUÇÃO DAS OBRAS DE ENGENHARIA, VISANDO A IMPLANTAÇÃO DA TOMADA D ÁGUA DO RC-500 E DO CANAL CP 0 500/2 - PERIMETRO DE IRRIGAÇÃO SALITRE, NO ESTADO DA BAHIA. | E6: CODEVASF (SEDE) | G6: =PFP!J6 -> SICRO ABR/2025; SINAPI MAI/2025; EMBASA JAN/2025; ORSE ABR/2025; SUDECAP ABR/2025;SETOP JAN/2025. DATA-BASE ORÇAMENTO: JUL/2025
A7: Cod. | B7: Base | C7: Insumos | D7: Uni | E7: Qde | F7: Preço Unitário (PU) | G7: Preço Total (PT)
A8: P8060 | B8: SICRO | C8: Engenheiro Civil Consultor - Hidráulico | D8: mês | E8: =80/176 -> 0.4545454545 | F8: =VLOOKUP(A8,'MDO - DNIT'!A:Y,4,0) -> 22750.26 | G8: =E8*F8 -> 10341.02727
A9: PROP | B9: CODE | C9: Relatório | D9: und | E9: 2 | F9: ='PFP1.1Serv Graficos'!$E$33 -> 53.1 | G9: =E9*F9 -> 106.2
A11: TOTAL | G11: =SUM(G8:G10) -> 10447.22727
A14: P8060 | B14: SICRO | C14: Engenheiro Civil Consultor - Geotécnico | D14: mês | E14: =80/176 -> 0.4545454545 | F14: =VLOOKUP(A14,'MDO - DNIT'!A:Y,4,0) -> 22750.26 | G14: =E14*F14 -> 10341.02727
A15: PROP | B15: CODE | C15: Relatório | D15: und | E15: 2 | F15: ='PFP1.1Serv Graficos'!$E$33 -> 53.1 | G15: 106.2
A17: TOTAL | G17: =SUM(G14:G16) -> 10447.22727

Sheet PFP1.4_Ensaios_Solo_Concreto
A1: ENSAIOS DE SOLO E CONCRETO | I1: CODIGO:
I2: PFP-1.4
A3: NOME DA EMPRESA:
K4: MEMÓRIA DE CALCULO DO BDI DE FORNECIMENTO
A5: PROJETO: | F5: CONTRATANTE: | I5: =[51]PFP!K5 -> BASE: | K5: ITEM | L5: DISCRIMINAÇÃO | M5: PERC. (%)
A6: =PFP!A6 -> CONTRATAÇÃO DOS SERVIÇOS DE APOIO À FISCALIZAÇÃO PARA EXECUÇÃO DAS OBRAS DE ENGENHARIA, VISANDO A IMPLANTAÇÃO DA TOMADA D ÁGUA DO RC-500 E DO CANAL CP 0 500/2 - PERIMETRO DE IRRIGAÇÃO SALITRE, NO ESTADO DA BAHIA. | F6: =PFP!F6 -> CODEVASF (SEDE) | I6: =PFP!J6 -> SICRO ABR/2025; SINAPI MAI/2025; EMBASA JAN/2025; ORSE ABR/2025; SUDECAP ABR/2025;SETOP JAN/2025. DATA-BASE ORÇAMENTO: JUL/2025
A7: Base | B7: Cod. | C7: Código | D7: Insumos | E7: Uni | F7: Qde | G7: Custo Unitário (CU) | H7: Custo Total | I7: Preço Total (PT)
A8: EMBASA | B8: CODE | C8: 32.01.01 | D8: Sondagem A Trado Manual | E8: m | F8: 20 | G8: 65 | H8: =ROUND(F8*G8,2) -> 1300 | I8: =H8*(1+$M$25) -> 1490.996159 | K8: 1.00 | L8: Despesas Indiretas
A9: EMBASA | B9: CODE | C9: 34.01.22 | D9: Ensaio de Umidade Natral (Estufa) | E9: und | F9: 5 | G9: 100 | H9: =ROUND(F9*G9,2) -> 500 | I9: =H9*(1+$M$25) -> 573.460061 | K9: A1 | L9: Seguro e Garantia | M9: 0.008
A10: EMBASA | B10: CODE | C10: 34.01.23 | D10: Ensaio de Umidade Natural "Speed" | E10: und | F10: 5 | G10: 85 | H10: 425 | I10: 487.4410518 | K10: A2 | L10: Riscos e Imprevistos | M10: 0.0115
A11: EMBASA | B11: CODE | C11: 34.01.07 | D11: Deterimnação de Limite de Liquidez | E11: und | F11: 5 | G11: 190 | H11: 950 | I11: 1089.574116 | K11: A3 | L11: Despesas Financeiras | M11: 0.0105
A12: EMBASA | B12: CODE | C12: 34.01.10 | D12: Determinação de Limite de Plasticidade | E12: und | F12: 5 | G12: 190 | H12: 950 | I12: 1089.574116 | K12: A4 | L12: Administração Central | M12: 0.022
A13: COMPESA | B13: CODE | C13: 01.07.07U | D13: Ensaio de Granulometria por Peneiramento e Sedimentação | E13: und | F13: 5 | G13: 138.12 | H13: 690.6 | I13: 792.0630362 | K13: Total do Grupo A = | M13: =SUM(M9:M12) -> 0.052
A14: EMBASA | B14: CODE | C14: 34.01.25 | D14: Ensaio de Compactação - Proctor Normal | E14: und | F14: 5 | G14: 300 | H14: 1500 | I14: 1720.380183 | K14: 2.00 | L14: Benefício
A15: EMBASA | B15: CODE | C15: 34.01.16 | D15: Massa Específica Real dos Grãos | E15: und | F15: 5 | G15: 65.78 | H15: 328.9 | I15: 377.2220281 | K15: B1 | L15: LUCRO | M15: 0.05
A16: EMBASA | B16: CODE | C16: 34.05.19 | D16: Deteriminação da Massa Específica Aparente "In Situ", com Emprego do Cilindro de Cravação | E16: und | F16: 5 | G16: 157.86 | H16: 789.3 | I16: 905.2640523 | K16: Total do Grupo B = | M16: =M15 -> 0.05
A17: SUDECAP | B17: CODE | C17: 98.04.09 | D17: Concreto - Extração e Rompimento de Corpo de Prova Cilindrico | E17: und | F17: 20 | G17: 600 | H17: 12000 | I17: 13763.04146 | K17: 3.00 | L17: Impostos
A18: SETOP | B18: CODE | C18: ED-49546 | D18: Concreto - Rompimento de Corpo de Prova Moldado in Loco no Recebimento | E18: und | F18: 20 | G18: 100.21 | H18: 2004.2 | I18: 2298.657308 | K18: C1 | L18: PIS / PASEP | M18: 0.0065
A19: TOTAL SERVIÇOS ENSAIOS | I19: =SUM(I8:I18) -> 24587.67357 | K19: C2 | L19: COFINS | M19: 0.03
A20: OBSERVAÇÃO: | K20: C3 | L20: ISS | M20: 0
A21: Uni - unidade de medição do insumo; | K21: Total do Grupo C = | M21: =SUM(M18:M20) -> 0.0365
A22: Qde - Quantidade do Insumo (não pode ocorrer alteração pela Licitante) | K22: Fórmula Para Cálculo do B.D.I
A23: PU - Preço Unitário (composições padrão da Codevasf, já incluso o FatorK) | K23: BDI =(((1+A4+A1+A2)*(1+A3)*(1+B))/(1-C))-1
A24: PT - Preço Total (incluído encargos, taxas e impostos) - PT = Qde x PU
K25: Bonificação Sobre Despesas indiretas (B.D.I) = | M25: =(((1+M12+M9+M10)*(1+M11)*(1+M16))/(1-M21))-1 -> 0.146920122

Sheet PFP2.1_FatorKa
A1: DETALHAMENTO DOS ENCARGOS SOCIAIS: Ka | F1: CODIGO:
F2: PFP-2.1
A3: NOME DA CONSULTORA:
A5: PROJETO: | C5: CONTRATANTE: | F5: =PFP!J5 -> BASE:
A6: =PFP!A6 -> CONTRATAÇÃO DOS SERVIÇOS DE APOIO À FISCALIZAÇÃO PARA EXECUÇÃO DAS OBRAS DE ENGENHARIA, VISANDO A IMPLANTAÇÃO DA TOMADA D ÁGUA DO RC-500 E DO CANAL CP 0 500/2 - PERIMETRO DE IRRIGAÇÃO SALITRE, NO ESTADO DA BAHIA. | C6: CODEVASF (SEDE) | F6: SINAPI/BA
A7: Cod | B7: DESCRIÇÃO | E7: % | F7: R$
A8: A | B8: ENCARGOS SOCIAIS BÁSICOS | E8: =ROUND(SUM(E9:E17),4) -> 0.368 | F8: =ROUND(E8*SUMIF(PFP!$B$8:$B$17,"MO1",PFP!$J$8:$J$17),2) -> 542200.22
A9: A1 | B9: INSS | E9: 0.2 | F9: =ROUND(E9*SUMIF(PFP!$B$8:$B$17,"MO1",PFP!$J$8:$J$17),2) -> 294674.03
A10: A2 | B10: SESI | E10: 0.015 | F10: =ROUND(E10*SUMIF(PFP!$B$8:$B$17,"MO1",PFP!$J$8:$J$17),2) -> 22100.55
A11: A3 | B11: SENAI | E11: 0.01 | F11: =ROUND(E11*SUMIF(PFP!$B$8:$B$17,"MO1",PFP!$J$8:$J$17),2) -> 14733.7
A12: A4 | B12: INCRA | E12: 0.002 | F12: =ROUND(E12*SUMIF(PFP!$B$8:$B$17,"MO1",PFP!$J$8:$J$17),2) -> 2946.74
A13: A5 | B13: SEBRAE | E13: 0.006 | F13: =ROUND(E13*SUMIF(PFP!$B$8:$B$17,"MO1",PFP!$J$8:$J$17),2) -> 8840.22
A14: A6 | B14: Salário Educação | E14: 0.025 | F14: =ROUND(E14*SUMIF(PFP!$B$8:$B$17,"MO1",PFP!$J$8:$J$17),2) -> 36834.25
A15: A7 | B15: Seguro Contra Acidentes de Trabalho | E15: 0.03 | F15: =ROUND(E15*SUMIF(PFP!$B$8:$B$17,"MO1",PFP!$J$8:$J$17),2) -> 44201.1
A16: A8 | B16: FGTS | E16: 0.08 | F16: =ROUND(E16*SUMIF(PFP!$B$8:$B$17,"MO1",PFP!$J$8:$J$17),2) -> 117869.61
A17: A9 | B17: SECONCI | E17: 0 | F17: =ROUND(E17*SUMIF(PFP!$B$8:$B$17,"MO1",PFP!$J$8:$J$17),2) -> 0
A18: B | B18: ENCARGOS SOCIAIS QUE RECEBEM INCIDÊNCIA DE "A" | E18: =ROUND(SUM(E19:E25),4) -> 0.1866 | F18: =ROUND(E18*SUMIF(PFP!$B$8:$B$17,"MO1",PFP!$J$8:$J$17),2) -> 274930.87
A19: B3 | B19: Auxílio Enfermidade | E19: 0.0065 | F19: =ROUND(E19*SUMIF(PFP!$B$8:$B$17,"MO1",PFP!$J$8:$J$17),2) -> 9576.91
A20: B4 | B20: 13º Salário | E20: 0.0833 | F20: =ROUND(E20*SUMIF(PFP!$B$8:$B$17,"MO1",PFP!$J$8:$J$17),2) -> 122731.73
A21: B5 | B21: Licença Paternidade | E21: 0.0005 | F21: =ROUND(E21*SUMIF(PFP!$B$8:$B$17,"MO1",PFP!$J$8:$J$17),2) -> 736.69
A22: B6 | B22: Faltas Justificadas | E22: 0.0056 | F22: =ROUND(E22*SUMIF(PFP!$B$8:$B$17,"MO1",PFP!$J$8:$J$17),2) -> 8250.87
A23: B8 | B23: Auxílio Acidente de Trabalho | E23: 0.0007 | F23: =ROUND(E23*SUMIF(PFP!$B$8:$B$17,"MO1",PFP!$J$8:$J$17),2) -> 1031.36
A24: B9 | B24: Férias Gozadas | E24: 0.0897 | F24: =ROUND(E24*SUMIF(PFP!$B$8:$B$17,"MO1",PFP!$J$8:$J$17),2) -> 132161.3
A25: B10 | B25: Salário Maternidade | E25: 0.0003 | F25: =ROUND(E25*SUMIF(PFP!$B$8:$B$17,"MO1",PFP!$J$8:$J$17),2) -> 442.01
A26: C | B26: ENCARGOS SOCIAIS QUE NÃO RECEBEM INCIDÊNCIA DE "A" | E26: =ROUND(SUM(E27:E31),4) -> 0.0859 | F26: =ROUND(E26*SUMIF(PFP!$B$8:$B$17,"MO1",PFP!$J$8:$J$17),2) -> 126562.5
A27: C1 | B27: Aviso Prévio Indenizado | E27: 0.0413 | F27: =ROUND(E27*SUMIF(PFP!$B$8:$B$17,"MO1",PFP!$J$8:$J$17),2) -> 60850.19
A28: C2 | B28: Aviso Prévio Trabalhado | E28: 0.001 | F28: =ROUND(E28*SUMIF(PFP!$B$8:$B$17,"MO1",PFP!$J$8:$J$17),2) -> 1473.37
A29: C3 | B29: Férias Indenizadas | E29: 0.0177 | F29: =ROUND(E29*SUMIF(PFP!$B$8:$B$17,"MO1",PFP!$J$8:$J$17),2) -> 26078.65
A30: C4 | B30: Depósito Rescisão Sem Justa Causa | E30: 0.0224 | F30: =ROUND(E30*SUMIF(PFP!$B$8:$B$17,"MO1",PFP!$J$8:$J$17),2) -> 33003.49
A31: C5 | B31: Indenização Adicional | E31: 0.0035 | F31: =ROUND(E31*SUMIF(PFP!$B$8:$B$17,"MO1",PFP!$J$8:$J$17),2) -> 5156.8
A32: D | B32: REINCIDÊNCIAS | E32: =ROUND(SUM(E33:E34),4) -> 0.0724 | F32: =ROUND(E32*SUMIF(PFP!$B$8:$B$17,"MO1",PFP!$J$8:$J$17),2) -> 106672
A33: D1 | B33: Reincidência de "A" sobre "B" | E33: 0.0687 | F33: =ROUND(E33*SUMIF(PFP!$B$8:$B$17,"MO1",PFP!$J$8:$J$17),2) -> 101220.53
A34: D2 | B34: Reincidência de "A" sobre Aviso Prévio Trabalhado e reincidência do FGTS sobre Aviso Prévio Indenizado | E34: 0.0037 | F34: =ROUND(E34*SUMIF(PFP!$B$8:$B$17,"MO1",PFP!$J$8:$J$17),2) -> 5451.47
A35: K1a | B35: ENCARGOS SOCIAIS | E35: =ROUND(E8+E18+E26+E32,4) -> 0.7129 | F35: =ROUND(E35*SUMIF(PFP!$B$8:$B$17,"MO1",PFP!$J$8:$J$17),2) -> 1050365.59
A36: Ka | B36: TAXA DE RESSARCIMENTO DE DESPESAS E ENCARGOS SOBRE MO1 | E36: =ROUND((1+E35+[52]PFP3_FatorKd!E13)*(1+[52]PFP3_FatorKd!E12)*(1+[52]PFP3_FatorKd!E8),4) -> 2.1575
A37: OBSERVAÇÃO: CELETISTAS E EQUIVALENTES
A38: 1 - DISCRIMINAR OS ENCARGOS SOCIAIS COM SEUS RESPECTIVOS PERCENTUAS TOTALIZANDO OS MESMOS.
A39: 2 - APLICAR O % TOTAL P/ CALCULAR OS E. SOCIAIS INCIDENTES NA MÃO-DE-OBRA CELETISTAS
A40: Ka - Taxa de Ressarcimento de Despesas e Encargos sobre a Mão de Obra CELETISTA (incide apenas no Insumo Codigo MO1)
A41: Ka = (1 + K1 + K2) x (1 + K3) x (1 + K4)

Sheet PFP2.2_FatorKb
A1: DETALHAMENTO DOS ENCARGOS SOCIAIS: Kb | F1: CODIGO:
F2: PFP-2.2
A3: NOME DA CONSULTORA:
A5: PROJETO: | C5: CONTRATANTE: | F5: ='PFP2.1_FatorKa'!F5 -> BASE:
A6: =PFP!A6 -> CONTRATAÇÃO DOS SERVIÇOS DE APOIO À FISCALIZAÇÃO PARA EXECUÇÃO DAS OBRAS DE ENGENHARIA, VISANDO A IMPLANTAÇÃO DA TOMADA D ÁGUA DO RC-500 E DO CANAL CP 0 500/2 - PERIMETRO DE IRRIGAÇÃO SALITRE, NO ESTADO DA BAHIA. | C6: CODEVASF (SEDE) | F6: ='PFP2.1_FatorKa'!F6 -> SINAPI/BA
A7: Cod | B7: DESCRIÇÃO | E7: % | F7: R$
A8: A | B8: ENCARGOS SOCIAIS BÁSICOS | E8: =ROUND(SUM(E9:E16),4) -> 0.2 | F8: =ROUND(E8*SUMIF(PFP!$B$8:$B$17,"MO2",PFP!$J$8:$J$17),2) -> 0
A9: A1 | B9: INSS | E9: 0.2 | F9: =ROUND(E9*SUMIF(PFP!$B$8:$B$17,"MO2",PFP!$J$8:$J$17),2) -> 0
A10: A2 | B10: SESI | E10: 0 | F10: =ROUND(E10*SUMIF(PFP!$B$8:$B$17,"MO2",PFP!$J$8:$J$17),2) -> 0
A11: A3 | B11: SENAI | E11: 0 | F11: =ROUND(E11*SUMIF(PFP!$B$8:$B$17,"MO2",PFP!$J$8:$J$17),2) -> 0
A12: A4 | B12: INCRA | E12: 0 | F12: =ROUND(E12*SUMIF(PFP!$B$8:$B$17,"MO2",PFP!$J$8:$J$17),2) -> 0
A13: A5 | B13: SEBRAE | E13: 0 | F13: =ROUND(E13*SUMIF(PFP!$B$8:$B$17,"MO2",PFP!$J$8:$J$17),2) -> 0
A14: A6 | B14: Salário Educação | E14: 0 | F14: =ROUND(E14*SUMIF(PFP!$B$8:$B$17,"MO2",PFP!$J$8:$J$17),2) -> 0
A15: A7 | B15: Seguro Contra Acidentes de Trabalho | E15: 0 | F15: =ROUND(E15*SUMIF(PFP!$B$8:$B$17,"MO2",PFP!$J$8:$J$17),2) -> 0
A16: A8 | B16: FGTS | E16: 0 | F16: =ROUND(E16*SUMIF(PFP!$B$8:$B$17,"MO2",PFP!$J$8:$J$17),2) -> 0
A17: B | B17: ENCARGOS SOCIAIS QUE RECEBEM INCIDÊNCIA DE "A" | E17: =ROUND(SUM(E18:E24),4) -> 0 | F17: =ROUND(E17*SUMIF(PFP!$B$8:$B$17,"MO2",PFP!$J$8:$J$17),2) -> 0
A18: B3 | B18: Auxílio Enfermidade | E18: 0 | F18: =ROUND(E18*SUMIF(PFP!$B$8:$B$17,"MO2",PFP!$J$8:$J$17),2) -> 0
A19: B4 | B19: 13º Salário | E19: 0 | F19: =ROUND(E19*SUMIF(PFP!$B$8:$B$17,"MO2",PFP!$J$8:$J$17),2) -> 0
A20: B5 | B20: Licença Paternidade | E20: 0 | F20: =ROUND(E20*SUMIF(PFP!$B$8:$B$17,"MO2",PFP!$J$8:$J$17),2) -> 0
A21: B6 | B21: Faltas Justificadas | E21: 0 | F21: =ROUND(E21*SUMIF(PFP!$B$8:$B$17,"MO2",PFP!$J$8:$J$17),2) -> 0
A22: B8 | B22: Auxílio Acidente de Trabalho | E22: 0 | F22: =ROUND(E22*SUMIF(PFP!$B$8:$B$17,"MO2",PFP!$J$8:$J$17),2) -> 0
A23: B9 | B23: Férias Gozadas | E23: 0 | F23: =ROUND(E23*SUMIF(PFP!$B$8:$B$17,"MO2",PFP!$J$8:$J$17),2) -> 0
A24: B10 | B24: Salário Maternidade | E24: 0 | F24: =ROUND(E24*SUMIF(PFP!$B$8:$B$17,"MO2",PFP!$J$8:$J$17),2) -> 0
A25: C | B25: ENCARGOS SOCIAIS QUE NÃO RECEBEM INCIDÊNCIA DE "A" | E25: =ROUND(SUM(E26:E30),4) -> 0 | F25: =ROUND(E25*SUMIF(PFP!$B$8:$B$17,"MO2",PFP!$J$8:$J$17),2) -> 0
A26: C1 | B26: Aviso Prévio Indenizado | E26: 0 | F26: =ROUND(E26*SUMIF(PFP!$B$8:$B$17,"MO2",PFP!$J$8:$J$17),2) -> 0
A27: C2 | B27: Aviso Prévio Trabalhado | E27: 0 | F27: =ROUND(E27*SUMIF(PFP!$B$8:$B$17,"MO2",PFP!$J$8:$J$17),2) -> 0
A28: C3 | B28: Férias Indenizadas | E28: 0 | F28: =ROUND(E28*SUMIF(PFP!$B$8:$B$17,"MO2",PFP!$J$8:$J$17),2) -> 0
A29: C4 | B29: Depósito Rescisão Sem Justa Causa | E29: 0 | F29: =ROUND(E29*SUMIF(PFP!$B$8:$B$17,"MO2",PFP!$J$8:$J$17),2) -> 0
A30: C5 | B30: Indenização Adicional | E30: 0 | F30: =ROUND(E30*SUMIF(PFP!$B$8:$B$17,"MO2",PFP!$J$8:$J$17),2) -> 0
A31: D | B31: REINCIDÊNCIAS | E31: =ROUND(SUM(E32:E33),4) -> 0 | F31: =ROUND(E31*SUMIF(PFP!$B$8:$B$17,"MO2",PFP!$J$8:$J$17),2) -> 0
A32: D1 | B32: Reincidência de "A" sobre "B" | E32: =ROUND(E8*E17,4) -> 0 | F32: =ROUND(E32*SUMIF(PFP!$B$8:$B$17,"MO2",PFP!$J$8:$J$17),2) -> 0
A33: D2 | B33: Reincidência de "A" sobre Aviso Prévio Trabalhado e reincidência do FGTS sobre Aviso Prévio Indenizado | E33: =ROUND((E27*E8)+(E26*E16),4) -> 0 | F33: =ROUND(E33*SUMIF(PFP!$B$8:$B$17,"MO2",PFP!$J$8:$J$17),2) -> 0
A34: K1b | B34: ENCARGOS SOCIAIS | E34: =ROUND(E8+E17+E25+E31,4) -> 0.2 | F34: =ROUND(E34*SUMIF(PFP!$B$8:$B$17,"MO2",PFP!$J$8:$J$17),2) -> 0
A35: Kb | B35: TAXA DE RESSARCIMENTO DE DESPESAS E ENCARGOS SOBRE MO2 | E35: =ROUND((1+E34+PFP3_FatorKd!E13)*(1+PFP3_FatorKd!E12)*(1+PFP3_FatorKd!E8),4) -> 1.5247
A36: OBSERVAÇÃO: AUTÔNOMOS E EQUIVALENTES
A37: 1 - DISCRIMINAR OS ENCARGOS SOCIAIS COM SEUS RESPECTIVOS PERCENTUAS TOTALIZANDO OS MESMOS.
A38: 2 - APLICAR O % TOTAL P/ CALCULAR OS E. SOCIAIS INCIDENTES NA MÃO-DE-OBRA AUTONÔMOS
A39: Kb - Taxa de Ressarcimento de Despesas e Encargos sobre a Mão de Obra AUTONÔMA (incide apenas no Insumo Codigo MO2)
A40: Kb = (1 + K1 + K2) x (1 + K3) x (1 + K4)

Sheet PFP2.3_FatorKc
A1: DETALHAMENTO DOS ENCARGOS SOCIAIS: Kc | F1: CODIGO:
F2: PFP-2.3
A3: NOME DA CONSULTORA:
A5: PROJETO: | C5: CONTRATANTE: | F5: ='PFP2.2_FatorKb'!F5 -> BASE:
A6: =PFP!A6 -> CONTRATAÇÃO DOS SERVIÇOS DE APOIO À FISCALIZAÇÃO PARA EXECUÇÃO DAS OBRAS DE ENGENHARIA, VISANDO A IMPLANTAÇÃO DA TOMADA D ÁGUA DO RC-500 E DO CANAL CP 0 500/2 - PERIMETRO DE IRRIGAÇÃO SALITRE, NO ESTADO DA BAHIA. | C6: CODEVASF (SEDE) | F6: ='PFP2.2_FatorKb'!F6 -> SINAPI/BA
A7: Cod | B7: DESCRIÇÃO | E7: % | F7: R$
A8: A | B8: ENCARGOS SOCIAIS BÁSICOS | E8: =SUM(E9:E16) -> 0 | F8: =ROUND(E8*SUMIF(PFP!$B$8:$B$17,"MO3",PFP!$J$8:$J$17),2) -> 0
A9: A1 | B9: INSS | E9: 0 | F9: =ROUND(E9*SUMIF(PFP!$B$8:$B$17,"MO3",PFP!$J$8:$J$17),2) -> 0
A10: A2 | B10: SESI | E10: 0 | F10: =ROUND(E10*SUMIF(PFP!$B$8:$B$17,"MO3",PFP!$J$8:$J$17),2) -> 0
A11: A3 | B11: SENAI | E11: 0 | F11: =ROUND(E11*SUMIF(PFP!$B$8:$B$17,"MO3",PFP!$J$8:$J$17),2) -> 0
A12: A4 | B12: INCRA | E12: 0 | F12: =ROUND(E12*SUMIF(PFP!$B$8:$B$17,"MO3",PFP!$J$8:$J$17),2) -> 0
A13: A5 | B13: SEBRAE | E13: 0 | F13: =ROUND(E13*SUMIF(PFP!$B$8:$B$17,"MO3",PFP!$J$8:$J$17),2) -> 0
A14: A6 | B14: Salário Educação | E14: 0 | F14: =ROUND(E14*SUMIF(PFP!$B$8:$B$17,"MO3",PFP!$J$8:$J$17),2) -> 0
A15: A7 | B15: Seguro Contra Acidentes de Trabalho | E15: 0 | F15: =ROUND(E15*SUMIF(PFP!$B$8:$B$17,"MO3",PFP!$J$8:$J$17),2) -> 0
A16: A8 | B16: FGTS | E16: 0 | F16: =ROUND(E16*SUMIF(PFP!$B$8:$B$17,"MO3",PFP!$J$8:$J$17),2) -> 0
A17: B | B17: ENCARGOS SOCIAIS QUE RECEBEM INCIDÊNCIA DE "A" | E17: =ROUND(SUM(E18:E24),4) -> 0 | F17: =ROUND(E17*SUMIF(PFP!$B$8:$B$17,"MO3",PFP!$J$8:$J$17),2) -> 0
A18: B3 | B18: Auxílio Enfermidade | E18: 0 | F18: =ROUND(E18*SUMIF(PFP!$B$8:$B$17,"MO3",PFP!$J$8:$J$17),2) -> 0
A19: B4 | B19: 13º Salário | E19: 0 | F19: =ROUND(E19*SUMIF(PFP!$B$8:$B$17,"MO3",PFP!$J$8:$J$17),2) -> 0
A20: B5 | B20: Licença Paternidade | E20: 0 | F20: =ROUND(E20*SUMIF(PFP!$B$8:$B$17,"MO3",PFP!$J$8:$J$17),2) -> 0
A21: B6 | B21: Faltas Justificadas | E21: 0 | F21: =ROUND(E21*SUMIF(PFP!$B$8:$B$17,"MO3",PFP!$J$8:$J$17),2) -> 0
A22: B8 | B22: Auxílio Acidente de Trabalho | E22: 0 | F22: =ROUND(E22*SUMIF(PFP!$B$8:$B$17,"MO3",PFP!$J$8:$J$17),2) -> 0
A23: B9 | B23: Férias Gozadas | E23: 0 | F23: =ROUND(E23*SUMIF(PFP!$B$8:$B$17,"MO3",PFP!$J$8:$J$17),2) -> 0
A24: B10 | B24: Salário Maternidade | E24: 0 | F24: =ROUND(E24*SUMIF(PFP!$B$8:$B$17,"MO3",PFP!$J$8:$J$17),2) -> 0
A25: C | B25: ENCARGOS SOCIAIS QUE NÃO RECEBEM INCIDÊNCIA DE "A" | E25: =ROUND(SUM(E26:E30),4) -> 0 | F25: =ROUND(E25*SUMIF(PFP!$B$8:$B$17,"MO3",PFP!$J$8:$J$17),2) -> 0
A26: C1 | B26: Aviso Prévio Indenizado | E26: 0 | F26: =ROUND(E26*SUMIF(PFP!$B$8:$B$17,"MO3",PFP!$J$8:$J$17),2) -> 0
A27: C2 | B27: Aviso Prévio Trabalhado | E27: 0 | F27: =ROUND(E27*SUMIF(PFP!$B$8:$B$17,"MO3",PFP!$J$8:$J$17),2) -> 0
A28: C3 | B28: Férias Indenizadas | E28: 0 | F28: =ROUND(E28*SUMIF(PFP!$B$8:$B$17,"MO3",PFP!$J$8:$J$17),2) -> 0
A29: C4 | B29: Depósito Rescisão Sem Justa Causa | E29: 0 | F29: =ROUND(E29*SUMIF(PFP!$B$8:$B$17,"MO3",PFP!$J$8:$J$17),2) -> 0
A30: C5 | B30: Indenização Adicional | E30: 0 | F30: =ROUND(E30*SUMIF(PFP!$B$8:$B$17,"MO3",PFP!$J$8:$J$17),2) -> 0
A31: D | B31: REINCIDÊNCIAS | E31: =ROUND(SUM(E32:E33),4) -> 0 | F31: =ROUND(E31*SUMIF(PFP!$B$8:$B$17,"MO3",PFP!$J$8:$J$17),2) -> 0
A32: D1 | B32: Reincidência de "A" sobre "B" | E32: =ROUND(E8*E17,4) -> 0 | F32: =ROUND(E32*SUMIF(PFP!$B$8:$B$17,"MO3",PFP!$J$8:$J$17),2) -> 0
A33: D2 | B33: Reincidência de "A" sobre Aviso Prévio Trabalhado e reincidência do FGTS sobre Aviso Prévio Indenizado | E33: =ROUND(E8*E27,4)+ROUND(E26*E11,4) -> 0 | F33: =ROUND(E33*SUMIF(PFP!$B$8:$B$17,"MO3",PFP!$J$8:$J$17),2) -> 0
A34: K1c | B34: ENCARGOS SOCIAIS | E34: =ROUND(E8+E17+E25+E31,4) -> 0 | F34: =ROUND(E34*SUMIF(PFP!$B$8:$B$17,"MO3",PFP!$J$8:$J$17),2) -> 0
A35: Kc | B35: TAXA DE RESSARCIMENTO DE DESPESAS E ENCARGOS SOBRE MO3 | E35: =ROUND((1+E34+PFP3_FatorKd!E13)*(1+PFP3_FatorKd!E12)*(1+PFP3_FatorKd!E8),4) -> 1.2827
A36: OBSERVAÇÃO: SOCIETÁRIOS E EQUIVALENTES
A37: 1 - DISCRIMINAR OS ENCARGOS SOCIAIS COM SEUS RESPECTIVOS PERCENTUAS TOTALIZANDO OS MESMOS.
A38: 2 - APLICAR O % TOTAL P/ CALCULAR OS E. SOCIAIS INCIDENTES NA MÃO-DE-OBRA DE SOCIETÁRIOS
A39: Kc - Taxa de Ressarcimento de Despesas e Encargos sobre a Mão de Obra SOCIETÁRIA (incide apenas no Insumo Codigo MO3)
A40: Kc = (1 + K1 + K2) x (1 + K3) x (1 + K4)

Sheet PFP3_FatorKd
A1: DESPESAS FISCAIS E CUSTOS DIVERSOS: Kd | F1: CODIGO:
F2: PFP-3
A3: NOME DA CONSULTORA:
A5: PROJETO: | C5: CONTRATANTE: | F5: ='PFP2.3_FatorKc'!F5 -> BASE:
A6: =PFP!A6 -> CONTRATAÇÃO DOS SERVIÇOS DE APOIO À FISCALIZAÇÃO PARA EXECUÇÃO DAS OBRAS DE ENGENHARIA, VISANDO A IMPLANTAÇÃO DA TOMADA D ÁGUA DO RC-500 E DO CANAL CP 0 500/2 - PERIMETRO DE IRRIGAÇÃO SALITRE, NO ESTADO DA BAHIA. | C6: CODEVASF (SEDE) | F6: ='PFP2.3_FatorKc'!F6 -> SINAPI/BA
A7: Cod | B7: DESCRIÇÃO1 | D7: % preço2 | E7: % custo4 | F7: R$
A8: K4 | B8: TRIBUTOS | D8: =ROUND(D9+D10+D11,4) -> 0.124 | E8: =ROUND(E9+E10+E11,4) -> 0.1416 | F8: =E8*SUM(SUMIF(PFP!$B$8:$B$17,"MO1",PFP!$J$8:$J$17)*(1+'PFP2.1_FatorKa'!$E$35)+SUMIF(PFP!$B$8:$B$17,"MO2",PFP!$J$8:$J$17)*(1+'PFP2.2_FatorKb'!$E$34)+SUMIF(PFP!$B$8:$B$17,"<>MO*",PFP!$J$8:$J$17)+$F$13+$F$12) -> 392071.4588
A9: K4.1 | B9: ISS | D9: 0.05 | E9: =ROUND((1/(1-$D$8))*D9,4) -> 0.0571 | F9: =E9*SUM(SUMIF(PFP!$B$8:$B$17,"MO1",PFP!$J$8:$J$17)*(1+'PFP2.1_FatorKa'!$E$35)+SUMIF(PFP!$B$8:$B$17,"MO2",PFP!$J$8:$J$17)*(1+'PFP2.2_FatorKb'!$E$34)+SUMIF(PFP!$B$8:$B$17,"<>MO*",PFP!$J$8:$J$17)+$F$13+$F$12) -> 158102.262
A10: K4.2 | B10: PIS3 - aliquota efetiva aplicavel percentual-desconto | D10: =ROUND(1.65%*0.8,4) -> 0.0132 | E10: =ROUND((1/(1-$D$8))*D10,4) -> 0.0151 | F10: =E10*SUM(SUMIF(PFP!$B$8:$B$17,"MO1",PFP!$J$8:$J$17)*(1+'PFP2.1_FatorKa'!$E$35)+SUMIF(PFP!$B$8:$B$17,"MO2",PFP!$J$8:$J$17)*(1+'PFP2.2_FatorKb'!$E$34)+SUMIF(PFP!$B$8:$B$17,"<>MO*",PFP!$J$8:$J$17)+$F$13+$F$12) -> 41809.88014
A11: K4.3 | B11: COFINS3 - aliquota efetiva aplicavel percentual-desconto | D11: =ROUND(7.6%*0.8,4) -> 0.0608 | E11: =ROUND((1/(1-$D$8))*D11,4) -> 0.0694 | F11: =E11*SUM(SUMIF(PFP!$B$8:$B$17,"MO1",PFP!$J$8:$J$17)*(1+'PFP2.1_FatorKa'!$E$35)+SUMIF(PFP!$B$8:$B$17,"MO2",PFP!$J$8:$J$17)*(1+'PFP2.2_FatorKb'!$E$34)+SUMIF(PFP!$B$8:$B$17,"<>MO*",PFP!$J$8:$J$17)+$F$13+$F$12) -> 192159.3167
A12: K3 | B12: REMUNERAÇÃO DA EMPRESA (LUCRO) | E12: 0.06 | F12: =E12*SUM(SUMIF(PFP!$B$8:$B$17,"MO1",PFP!$J$8:$J$17)*(1+'PFP2.1_FatorKa'!$E$35)+SUMIF(PFP!$B$8:$B$17,"MO2",PFP!$J$8:$J$17)*(1+'PFP2.2_FatorKb'!$E$34)+SUMIF(PFP!$B$8:$B$17,"<>MO*",PFP!$J$8:$J$17)+$F$13) -> 156728.2774
A13: K2 | B13: CUSTOS DA ADMINISTRAÇÃO CENTRAL | E13: =ROUND(SUM(E14:E16),4) -> 0.06 | F13: =ROUND(E13*SUMIF(PFP!$B$8:$B$17,"MO*",PFP!$J$8:$J$17),2) -> 88402.21
A14: K2.1 | B14: Custos da administração central da empresa (diretoria, pessoal técnico de apoio e pessoal administrativo não diretamente vinculado à prestação dos serviços) | E14: 0.03 | F14: =ROUND(E14*SUMIF(PFP!$B$8:$B$17,"MO*",PFP!$J$8:$J$17),2) -> 44201.1
A15: K2.2 | B15: Outras despesas que afetam o custo de produção como treinamento, biblioteca, programa de qualidade, programa de benefícios, auditoria interna e externa | E15: 0.02 | F15: =ROUND(E15*SUMIF(PFP!$B$8:$B$17,"MO*",PFP!$J$8:$J$17),2) -> 29467.4
A16: K2.3 | B16: Despesas fixas e variaveis com patrimônio, aluguéis, comunicação, manutenção e transporte não diretamente relacionados com o custo direto dos serviços | E16: 0.01 | F16: =ROUND(E16*SUMIF(PFP!$B$8:$B$17,"MO*",PFP!$J$8:$J$17),2) -> 14733.7
A17: Kd | B17: TAXA RESSARCIMENTO DE DESPESAS SOBRE CUSTOS DIVERSOS | E17: =ROUND((1+E12)*(1+E8),4) -> 1.2101
A18: NOME DO INFORMANTE: | E18: QUALIFICAÇÃO:
A20: ASSINATURA: | E20: DATA:
A22: Observação:
A23: 1 - RELACIONAR OS CUSTOS DE ADMINISTRAÇÃO COM RESPECTIVOS PERCENTUAIS INCIDENTES NA MÃO -DE-OBRA
A24: 1 - DISCRIMINAR OS TRIBUTOS QUE INCIDEM SOBRE OS CUSTOS DA PRESTAÇÃO DOS SERVIÇOS
A25: 2 - K4 = INDICAR % DE CADA TRIBUTO E A SOMA DOS MESMOS (ex: ISS 5% + PIS 1,65% + COFINS 7,60% = 14,25%)
A26: 3 - PIS e COFINS, Regime de Incidencia Acumulativa (0,65% e 3,00% - sem percentual de desconto) ou em Regime de Incidencia Não Acumulativa (1,65% e 7,60% - aplicável percentual de desconto) de acordo com a forma de apuração do lucro no IRPJ. APRESENTAR COMPROVANTES de aproveitamento de créditos tributários dos últimos 12 meses em caso de aplicação de "percentual de desconto".
A27: 4 - AS DESPESAS FISCAIS (K4) INCIDEM SOBRE O TOTAL DA FATURA E NÃO SOBRE OS CUSTOS INCORRIDOS,
A28: DEVENDO SER CALCULADO O K4' APLICANDO-SE A SEGUINTE FÓRMULA:
A29: K4' = { [ 1 / ( 1 - K4) ] - 1 } x 100
A30: =CONCATENATE(" K4' = { [ 1 / ( 1 - ",D8," ) ] - 1 } x 100") -> K4' = { [ 1 / ( 1 - 0,124 ) ] - 1 } x 100
A31: Kc - Taxa de Ressarcimento de Despesas sobre Custos Diversos (incide sobre os Insumos Codigo DP e EM)
A32: Kc = (1 + K3) x (1 + K4)
A33: K2 - Incide sobre o Custo Total (CT) da Mão de Obra (MO* = MO1 + MO2)
A34: K3 - Incide sobre o Custo Total (CT) Mão de Obra com encargos (MO1 x Ka ou MO2 x Kb), demais Custos (DP e EM), e Custos da Administração Central (K2)
A35: K4 - Incide sobre o Custo Total (CT) Mão de Obra com encargos (MO1 x Ka ou MO2 x Kb), demais Custos (DP e EM), e Custos da Administração Central (K2) e Lucro (K3)

Sheet Cronograma Físico-Financeiro
B1: CRONOGRAMA FÍSICO-FINANCEIRO
D4: Mês 1 | E4: Mês 2 | F4: Mês 3 | G4: Mês 4 | H4: Mês 5 | I4: Mês 6 | J4: Mês 7 | K4: Mês 8 | L4: Mês 9 | M4: Mês 10 | N4: Mês 11 | O4: Mês 12 | P4: Mês 13 | Q4: Mês 14 | R4: Mês 15 | S4: Mês 16 | T4: Mês 17 | U4: Mês 18 | V4: Mês 19 | W4: Mês 20 | X4: Mês 21 | Y4: Mês 22 | Z4: Mês 23 | AA4: Mês 24 | AB4: Mês 25 | AC4: Mês 26
B5: =PFP!D8 -> Engenheiro Pleno | C5: =PFP!K8 -> 826852.64 | D5: =D6*$C$5 -> 31802.02462 | E5: =E6*$C$5 -> 31802.02462 | F5: =F6*$C$5 -> 31802.02462 | G5: =G6*$C$5 -> 31802.02462 | H5: =H6*$C$5 -> 31802.02462 | I5: 31802.02462 | J5: =J6*$C$5 -> 31802.02462 | K5: =K6*$C$5 -> 31802.02462 | L5: =L6*$C$5 -> 31802.02462 | M5: =M6*$C$5 -> 31802.02462 | N5: 31802.02462 | O5: 31802.02462 | P5: 31802.02462 | Q5: 31802.02462 | R5: 31802.02462 | S5: 31802.02462 | T5: 31802.02462 | U5: 31802.02462 | V5: 31802.02462 | W5: 31802.02462 | X5: 31802.02462 | Y5: 31802.02462 | Z5: 31802.02462 | AA5: 31802.02462 | AB5: 31802.02462 | AC5: 31802.02462 | AD5: =SUM(D5:AC5) -> 826852.64
D6: =100%/26 -> 0.03846153846 | E6: =100%/26 -> 0.03846153846 | F6: 0.03846153846 | G6: 0.03846153846 | H6: 0.03846153846 | I6: 0.03846153846 | J6: 0.03846153846 | K6: 0.03846153846 | L6: 0.03846153846 | M6: 0.03846153846 | N6: 0.03846153846 | O6: 0.03846153846 | P6: 0.03846153846 | Q6: 0.03846153846 | R6: 0.03846153846 | S6: 0.03846153846 | T6: 0.03846153846 | U6: 0.03846153846 | V6: 0.03846153846 | W6: 0.03846153846 | X6: 0.03846153846 | Y6: 0.03846153846 | Z6: 0.03846153846 | AA6: 0.03846153846 | AB6: 0.03846153846 | AC6: 0.03846153846 | AD6: 1
B7: =PFP!D9 -> Engenheiro Júnior | C7: =PFP!K9 -> 1113528.9 | D7: =D8*$C$7 -> 0 | E7: =E8*$C$7 -> 0 | F7: =F8*$C$7 -> 0 | G7: 0 | J7: 55676.445 | K7: 55676.445 | L7: 55676.445 | M7: 55676.445 | N7: 55676.445 | O7: 55676.445 | P7: 55676.445 | Q7: 55676.445 | R7: 55676.445 | S7: 55676.445 | T7: 55676.445 | U7: 55676.445 | V7: 55676.445 | W7: 55676.445 | X7: 55676.445 | Y7: 55676.445 | Z7: 55676.445 | AA7: 55676.445 | AB7: 55676.445 | AC7: 55676.445 | AD7: 1113528.9
J8: =100%/20 -> 0.05 | K8: 0.05 | L8: 0.05 | M8: 0.05 | N8: 0.05 | O8: 0.05 | P8: 0.05 | Q8: 0.05 | R8: 0.05 | S8: 0.05 | T8: 0.05 | U8: 0.05 | V8: 0.05 | W8: 0.05 | X8: 0.05 | Y8: 0.05 | Z8: 0.05 | AA8: 0.05 | AB8: 0.05 | AC8: 0.05 | AD8: 1
B9: =PFP!D10 -> Auxiliar de Administrativo | C9: =PFP!K10 -> 166690.18 | D9: =D10*$C$9 -> 0 | E9: =E10*$C$9 -> 0 | F9: 0 | G9: 0 | J9: 8334.509 | K9: 8334.509 | L9: 8334.509 | M9: 8334.509 | N9: 8334.509 | O9: 8334.509 | P9: 8334.509 | Q9: 8334.509 | R9: 8334.509 | S9: 8334.509 | T9: 8334.509 | U9: 8334.509 | V9: 8334.509 | W9: 8334.509 | X9: 8334.509 | Y9: 8334.509 | Z9: 8334.509 | AA9: 8334.509 | AB9: 8334.509 | AC9: 8334.509 | AD9: 166690.18
J10: 0.05 | K10: 0.05 | L10: 0.05 | M10: 0.05 | N10: 0.05 | O10: 0.05 | P10: 0.05 | Q10: 0.05 | R10: 0.05 | S10: 0.05 | T10: 0.05 | U10: 0.05 | V10: 0.05 | W10: 0.05 | X10: 0.05 | Y10: 0.05 | Z10: 0.05 | AA10: 0.05 | AB10: 0.05 | AC10: 0.05 | AD10: 1
B11: =PFP!D11 -> Técnico - Profissional Especial | C11: =PFP!K11 -> 282082.77 | D11: =D12*$C$11 -> 0 | E11: =E12*$C$11 -> 0 | F11: 0 | G11: 0 | J11: 14104.1385 | K11: 14104.1385 | L11: 14104.1385 | M11: 14104.1385 | N11: 14104.1385 | O11: 14104.1385 | P11: 14104.1385 | Q11: 14104.1385 | R11: 14104.1385 | S11: 14104.1385 | T11: 14104.1385 | U11: 14104.1385 | V11: 14104.1385 | W11: 14104.1385 | X11: 14104.1385 | Y11: 14104.1385 | Z11: 14104.1385 | AA11: 14104.1385 | AB11: 14104.1385 | AC11: 14104.1385 | AD11: 282082.77
J12: 0.05 | K12: 0.05 | L12: 0.05 | M12: 0.05 | N12: 0.05 | O12: 0.05 | P12: 0.05 | Q12: 0.05 | R12: 0.05 | S12: 0.05 | T12: 0.05 | U12: 0.05 | V12: 0.05 | W12: 0.05 | X12: 0.05 | Y12: 0.05 | Z12: 0.05 | AA12: 0.05 | AB12: 0.05 | AC12: 0.05 | AD12: 1
B13: =PFP!D12 -> Técnico Mecânico | C13: =PFP!K12 -> 56416.55 | D13: =D14*$C$13 -> 0 | E13: =E14*$C$13 -> 0 | F13: 0 | G13: 0 | J13: 0 | K13: 0 | L13: 0 | M13: 7052.06875 | N13: 7052.06875 | O13: 7052.06875 | P13: 7052.06875 | Q13: 7052.06875 | R13: 7052.06875 | S13: 7052.06875 | T13: 7052.06875 | U13: 0 | V13: 0 | W13: 0 | X13: 0 | Y13: 0 | Z13: 0 | AA13: 0 | AB13: 0 | AC13: 0 | AD13: 56416.55
M14: =100%/8 -> 0.125 | N14: =100%/8 -> 0.125 | O14: =100%/8 -> 0.125 | P14: 0.125 | Q14: 0.125 | R14: 0.125 | S14: 0.125 | T14: 0.125 | AD14: 1
B15: =PFP!D13 -> Topógrafo | C15: =PFP!K13 -> 110382.45 | D15: =D16*$C$15 -> 0 | E15: =E16*$C$15 -> 0 | F15: 0 | G15: 0 | J15: 5519.1225 | K15: 5519.1225 | L15: 5519.1225 | M15: 5519.1225 | N15: 5519.1225 | O15: 5519.1225 | P15: 5519.1225 | Q15: 5519.1225 | R15: 5519.1225 | S15: 5519.1225 | T15: 5519.1225 | U15: 5519.1225 | V15: 5519.1225 | W15: 5519.1225 | X15: 5519.1225 | Y15: 5519.1225 | Z15: 5519.1225 | AA15: 5519.1225 | AB15: 5519.1225 | AC15: 5519.1225 | AD15: 110382.45
J16: =100%/20 -> 0.05 | K16: 0.05 | L16: 0.05 | M16: 0.05 | N16: 0.05 | O16: 0.05 | P16: 0.05 | Q16: 0.05 | R16: 0.05 | S16: 0.05 | T16: 0.05 | U16: 0.05 | V16: 0.05 | W16: 0.05 | X16: 0.05 | Y16: 0.05 | Z16: 0.05 | AA16: 0.05 | AB16: 0.05 | AC16: 0.05 | AD16: 1
B17: =PFP!D14 -> Auxiliar topografo | C17: =PFP!K14 -> 71856.83 | D17: =D18*$C$17 -> 0 | E17: =E18*$C$17 -> 0 | F17: 0 | G17: 0 | J17: 3592.8415 | K17: 3592.8415 | L17: 3592.8415 | M17: 3592.8415 | N17: 3592.8415 | O17: 3592.8415 | P17: 3592.8415 | Q17: 3592.8415 | R17: 3592.8415 | S17: 3592.8415 | T17: 3592.8415 | U17: 3592.8415 | V17: 3592.8415 | W17: 3592.8415 | X17: 3592.8415 | Y17: 3592.8415 | Z17: 3592.8415 | AA17: 3592.8415 | AB17: 3592.8415 | AC17: 3592.8415 | AD17: 71856.83
J18: =100%/20 -> 0.05 | K18: 0.05 | L18: 0.05 | M18: 0.05 | N18: 0.05 | O18: 0.05 | P18: 0.05 | Q18: 0.05 | R18: 0.05 | S18: 0.05 | T18: 0.05 | U18: 0.05 | V18: 0.05 | W18: 0.05 | X18: 0.05 | Y18: 0.05 | Z18: 0.05 | AA18: 0.05 | AB18: 0.05 | AC18: 0.05 | AD18: 1
B19: =PFP!D15 -> Técnico - Profissional Especial (Desenhista) | C19: =PFP!K15 -> 141041.38 | D19: =D20*$C$19 -> 0 | E19: =E20*$C$19 -> 0 | F19: 0 | G19: 0 | J19: 7052.069 | K19: 7052.069 | L19: 7052.069 | M19: 7052.069 | N19: 7052.069 | O19: 7052.069 | P19: 7052.069 | Q19: 7052.069 | R19: 7052.069 | S19: 7052.069 | T19: 7052.069 | U19: 7052.069 | V19: 7052.069 | W19: 7052.069 | X19: 7052.069 | Y19: 7052.069 | Z19: 7052.069 | AA19: 7052.069 | AB19: 7052.069 | AC19: 7052.069 | AD19: 141041.38
J20: =100%/20 -> 0.05 | K20: 0.05 | L20: 0.05 | M20: 0.05 | N20: 0.05 | O20: 0.05 | P20: 0.05 | Q20: 0.05 | R20: 0.05 | S20: 0.05 | T20: 0.05 | U20: 0.05 | V20: 0.05 | W20: 0.05 | X20: 0.05 | Y20: 0.05 | Z20: 0.05 | AA20: 0.05 | AB20: 0.05 | AC20: 0.05 | AD20: 1
B21: =PFP!D16 -> Técnico Auxiliar (Laboratorista) | C21: =PFP!K16 -> 211375.45 | D21: =D22*$C$21 -> 0 | E21: =E22*$C$21 -> 0 | F21: 0 | G21: 0 | J21: 10568.7725 | K21: 10568.7725 | L21: 10568.7725 | M21: 10568.7725 | N21: 10568.7725 | O21: 10568.7725 | P21: 10568.7725 | Q21: 10568.7725 | R21: 10568.7725 | S21: 10568.7725 | T21: 10568.7725 | U21: 10568.7725 | V21: 10568.7725 | W21: 10568.7725 | X21: 10568.7725 | Y21: 10568.7725 | Z21: 10568.7725 | AA21: 10568.7725 | AB21: 10568.7725 | AC21: 10568.7725 | AD21: 211375.45
J22: =100%/20 -> 0.05 | K22: 0.05 | L22: 0.05 | M22: 0.05 | N22: 0.05 | O22: 0.05 | P22: 0.05 | Q22: 0.05 | R22: 0.05 | S22: 0.05 | T22: 0.05 | U22: 0.05 | V22: 0.05 | W22: 0.05 | X22: 0.05 | Y22: 0.05 | Z22: 0.05 | AA22: 0.05 | AB22: 0.05 | AC22: 0.05 | AD22: 1
B23: =PFP!D17 -> Tecnico Segurança do Trabalho | C23: =PFP!K17 -> 198568.96 | D23: =D24*$C$23 -> 0 | E23: =E24*$C$23 -> 0 | F23: 0 | G23: 0 | J23: 9928.448 | K23: 9928.448 | L23: 9928.448 | M23: 9928.448 | N23: 9928.448 | O23: 9928.448 | P23: 9928.448 | Q23: 9928.448 | R23: 9928.448 | S23: 9928.448 | T23: 9928.448 | U23: 9928.448 | V23: 9928.448 | W23: 9928.448 | X23: 9928.448 | Y23: 9928.448 | Z23: 9928.448 | AA23: 9928.448 | AB23: 9928.448 | AC23: 9928.448 | AD23: 198568.96
J24: =100%/20 -> 0.05 | K24: 0.05 | L24: 0.05 | M24: 0.05 | N24: 0.05 | O24: 0.05 | P24: 0.05 | Q24: 0.05 | R24: 0.05 | S24: 0.05 | T24: 0.05 | U24: 0.05 | V24: 0.05 | W24: 0.05 | X24: 0.05 | Y24: 0.05 | Z24: 0.05 | AA24: 0.05 | AB24: 0.05 | AC24: 0.05 | AD24: 1
B25: =PFP!D18 -> Técnico Ambiental | C25: =PFP!K18 -> 128897.25 | D25: =D26*$C$25 -> 0 | E25: =E26*$C$25 -> 0 | F25: 0 | G25: 0 | J25: 6444.8625 | K25: 6444.8625 | L25: 6444.8625 | M25: 6444.8625 | N25: 6444.8625 | O25: 6444.8625 | P25: 6444.8625 | Q25: 6444.8625 | R25: 6444.8625 | S25: 6444.8625 | T25: 6444.8625 | U25: 6444.8625 | V25: 6444.8625 | W25: 6444.8625 | X25: 6444.8625 | Y25: 6444.8625 | Z25: 6444.8625 | AA25: 6444.8625 | AB25: 6444.8625 | AC25: 6444.8625 | AD25: 128897.25
J26: =100%/20 -> 0.05 | K26: 0.05 | L26: 0.05 | M26: 0.05 | N26: 0.05 | O26: 0.05 | P26: 0.05 | Q26: 0.05 | R26: 0.05 | S26: 0.05 | T26: 0.05 | U26: 0.05 | V26: 0.05 | W26: 0.05 | X26: 0.05 | Y26: 0.05 | Z26: 0.05 | AA26: 0.05 | AB26: 0.05 | AC26: 0.05 | AD26: 1
B27: =PFP!D19 -> Assistente Social | C27: =PFP!K19 -> 327063.62 | D27: =D28*$C$27 -> 0 | E27: =E28*$C$27 -> 0 | F27: 0 | G27: 0 | J27: 16353.181 | K27: 16353.181 | L27: 16353.181 | M27: 16353.181 | N27: 16353.181 | O27: 16353.181 | P27: 16353.181 | Q27: 16353.181 | R27: 16353.181 | S27: 16353.181 | T27: 16353.181 | U27: 16353.181 | V27: 16353.181 | W27: 16353.181 | X27: 16353.181 | Y27: 16353.181 | Z27: 16353.181 | AA27: 16353.181 | AB27: 16353.181 | AC27: 16353.181 | AD27: 327063.62
J28: =100%/20 -> 0.05 | K28: 0.05 | L28: 0.05 | M28: 0.05 | N28: 0.05 | O28: 0.05 | P28: 0.05 | Q28: 0.05 | R28: 0.05 | S28: 0.05 | T28: 0.05 | U28: 0.05 | V28: 0.05 | W28: 0.05 | X28: 0.05 | Y28: 0.05 | Z28: 0.05 | AA28: 0.05 | AB28: 0.05 | AC28: 0.05 | AD28: 1
B29: =PFP!D20 -> Consultoria Engenheiro - Hidráulico | C29: =PFP!K20 -> 37926.57 | D29: =D30*$C$29 -> 0 | E29: =E30*$C$29 -> 0 | F29: 25284.38 | G29: 0 | J29: 0 | K29: 0 | L29: 0 | M29: 0 | N29: 0 | O29: 0 | P29: 0 | Q29: 0 | R29: 0 | S29: 12642.19 | T29: 0 | U29: 0 | V29: 0 | W29: 0 | X29: 0 | Y29: 0 | Z29: 0 | AA29: 0 | AB29: 0 | AC29: 0 | AD29: 37926.57
F30: =2*1/3 -> 0.6666666667 | S30: =1/3 -> 0.3333333333 | AD30: 1
B31: =PFP!D21 -> Consultoria Engenheiro - Geoténico | C31: =PFP!K21 -> 37926.57 | D31: =D32*$C$31 -> 0 | E31: =E32*$C$31 -> 0 | F31: 25284.38 | G31: 0 | J31: 0 | K31: 0 | L31: 0 | M31: 0 | N31: 0 | O31: 0 | P31: 0 | Q31: 12642.19 | R31: 0 | S31: 0 | T31: 0 | U31: 0 | V31: 0 | W31: 0 | X31: 0 | Y31: 0 | Z31: 0 | AA31: 0 | AB31: 0 | AC31: 0 | AD31: 37926.57
F32: =2*1/3 -> 0.6666666667 | Q32: =1/3 -> 0.3333333333 | AD32: 1
B33: =PFP!D22 -> Cesta de Instalações Topografia | C33: =PFP!K22 -> 124646.83 | D33: =D34*$C$33 -> 0 | E33: =E34*$C$33 -> 0 | F33: 0 | G33: 0 | J33: 6232.3415 | K33: 6232.3415 | L33: 6232.3415 | M33: 6232.3415 | N33: 6232.3415 | O33: 6232.3415 | P33: 6232.3415 | Q33: 6232.3415 | R33: 6232.3415 | S33: 6232.3415 | T33: 6232.3415 | U33: 6232.3415 | V33: 6232.3415 | W33: 6232.3415 | X33: 6232.3415 | Y33: 6232.3415 | Z33: 6232.3415 | AA33: 6232.3415 | AB33: 6232.3415 | AC33: 6232.3415 | AD33: 124646.83
J34: =100%/20 -> 0.05 | K34: 0.05 | L34: 0.05 | M34: 0.05 | N34: 0.05 | O34: 0.05 | P34: 0.05 | Q34: 0.05 | R34: 0.05 | S34: 0.05 | T34: 0.05 | U34: 0.05 | V34: 0.05 | W34: 0.05 | X34: 0.05 | Y34: 0.05 | Z34: 0.05 | AA34: 0.05 | AB34: 0.05 | AC34: 0.05 | AD34: 1
B35: =PFP!D23 -> PICK-UP - CD 4X4 Diesel | C35: =PFP!K23 -> 185905.36 | D35: =D36*$C$35 -> 0 | E35: =E36*$C$35 -> 0 | F35: 0 | G35: 0 | J35: 9295.268 | K35: 9295.268 | L35: 9295.268 | M35: 9295.268 | N35: 9295.268 | O35: 9295.268 | P35: 9295.268 | Q35: 9295.268 | R35: 9295.268 | S35: 9295.268 | T35: 9295.268 | U35: 9295.268 | V35: 9295.268 | W35: 9295.268 | X35: 9295.268 | Y35: 9295.268 | Z35: 9295.268 | AA35: 9295.268 | AB35: 9295.268 | AC35: 9295.268 | AD35: 185905.36
J36: =100%/20 -> 0.05 | K36: 0.05 | L36: 0.05 | M36: 0.05 | N36: 0.05 | O36: 0.05 | P36: 0.05 | Q36: 0.05 | R36: 0.05 | S36: 0.05 | T36: 0.05 | U36: 0.05 | V36: 0.05 | W36: 0.05 | X36: 0.05 | Y36: 0.05 | Z36: 0.05 | AA36: 0.05 | AB36: 0.05 | AC36: 0.05 | AD36: 1
B37: =PFP!D24 -> Veículo leve - 71 a 115 CV | C37: =PFP!K24 -> 179907.08 | D37: =D38*$C$37 -> 6919.503077 | E37: =E38*$C$37 -> 6919.503077 | F37: 6919.503077 | G37: 6919.503077 | H37: 6919.503077 | I37: 6919.503077 | J37: 6919.503077 | K37: 6919.503077 | L37: 6919.503077 | M37: 6919.503077 | N37: 6919.503077 | O37: 6919.503077 | P37: 6919.503077 | Q37: 6919.503077 | R37: 6919.503077 | S37: 6919.503077 | T37: 6919.503077 | U37: 6919.503077 | V37: 6919.503077 | W37: 6919.503077 | X37: 6919.503077 | Y37: 6919.503077 | Z37: 6919.503077 | AA37: 6919.503077 | AB37: 6919.503077 | AC37: 6919.503077 | AD37: 179907.08
D38: =100%/26 -> 0.03846153846 | E38: =100%/26 -> 0.03846153846 | F38: 0.03846153846 | G38: 0.03846153846 | H38: 0.03846153846 | I38: 0.03846153846 | J38: 0.03846153846 | K38: 0.03846153846 | L38: 0.03846153846 | M38: 0.03846153846 | N38: 0.03846153846 | O38: 0.03846153846 | P38: 0.03846153846 | Q38: 0.03846153846 | R38: 0.03846153846 | S38: 0.03846153846 | T38: 0.03846153846 | U38: 0.03846153846 | V38: 0.03846153846 | W38: 0.03846153846 | X38: 0.03846153846 | Y38: 0.03846153846 | Z38: 0.03846153846 | AA38: 0.03846153846 | AB38: 0.03846153846 | AC38: 0.03846153846 | AD38: 1
B39: =PFP!D25 -> Passagem (ida e volta) | C39: =PFP!K25 -> 26523.88 | D39: =D40*$C$39 -> 0 | E39: =E40*$C$39 -> 0 | F39: 14735.48889 | G39: 0 | J39: 0 | K39: 0 | L39: 2947.097778 | M39: 0 | N39: 0 | O39: 0 | P39: 0 | Q39: 2947.097778 | R39: 0 | S39: 2947.097778 | T39: 0 | U39: 0 | V39: 0 | W39: 0 | X39: 0 | Y39: 2947.097778 | Z39: 0 | AA39: 0 | AB39: 0 | AC39: 0 | AD39: 26523.88
F40: =5*1/9 -> 0.5555555556 | L40: =1/9 -> 0.1111111111 | Q40: =1/9 -> 0.1111111111 | S40: =1/9 -> 0.1111111111 | Y40: =1/9 -> 0.1111111111 | AD40: 1
B41: =PFP!D26 -> Diaria | C41: =PFP!K26 -> 10475.15 | D41: =D42*$C$41 -> 0 | E41: =E42*$C$41 -> 0 | F41: 5819.527778 | G41: 0 | J41: 0 | K41: 0 | L41: 1163.789165 | M41: 0 | N41: 0 | O41: 0 | P41: 0 | Q41: 1163.905556 | R41: 0 | S41: 1163.905556 | T41: 0 | U41: 0 | V41: 0 | W41: 0 | X41: 0 | Y41: 1163.905556 | Z41: 0 | AA41: 0 | AB41: 0 | AC41: 0 | AD41: 10475.03361
F42: =5*1/9 -> 0.5555555556 | L42: 0.1111 | Q42: =1/9 -> 0.1111111111 | S42: =1/9 -> 0.1111111111 | Y42: =1/9 -> 0.1111111111 | AD42: 0.9999888889
B43: =PFP!D27 -> Infraestrutura e Equipamentos de Escritório | C43: =PFP!K27 -> 158243.66 | D43: =D44*$C$43 -> 0 | E43: =E44*$C$43 -> 0 | F43: 0 | G43: 7912.183 | J43: 7912.183 | K43: 7912.183 | L43: 7912.183 | M43: 7912.183 | N43: 7912.183 | O43: 7912.183 | P43: 7912.183 | Q43: 7912.183 | R43: 7912.183 | S43: 7912.183 | T43: 7912.183 | U43: 7912.183 | V43: 7912.183 | W43: 7912.183 | X43: 7912.183 | Y43: 7912.183 | Z43: 7912.183 | AA43: 7912.183 | AB43: 7912.183 | AC43: 0 | AD43: 158243.66
G44: =100%/20 -> 0.05 | J44: 0.05 | K44: 0.05 | L44: 0.05 | M44: 0.05 | N44: 0.05 | O44: 0.05 | P44: 0.05 | Q44: 0.05 | R44: 0.05 | S44: 0.05 | T44: 0.05 | U44: 0.05 | V44: 0.05 | W44: 0.05 | X44: 0.05 | Y44: 0.05 | Z44: 0.05 | AA44: 0.05 | AB44: 0.05 | AD44: 1
B45: =PFP!D28 -> Ensaios de Solo e Concreto | C45: =PFP!K28 -> 24587.67 | D45: =D46*$C$45 -> 0 | E45: =E46*$C$45 -> 0 | F45: 0 | G45: 0 | H45: 0 | I45: 0 | J45: 0 | K45: 0 | L45: 0 | M45: 4917.534 | N45: 0 | O45: 0 | P45: 0 | Q45: 4917.534 | R45: 0 | S45: 0 | T45: 0 | U45: 4917.534 | V45: 0 | W45: 0 | X45: 0 | Y45: 4917.534 | Z45: 0 | AA45: 0 | AB45: 4917.534 | AC45: 0 | AD45: 24587.67
M46: =100%/5 -> 0.2 | Q46: =100%/5 -> 0.2 | U46: =100%/5 -> 0.2 | Y46: =100%/5 -> 0.2 | AB46: =100%/5 -> 0.2 | AD46: 1
B47: =PFP!D29 -> Encargos Complementares Adicionais | C47: =PFP!K29 -> 437462.66 | D47: =D48*$C$47 -> 18227.61083 | E47: =E48*$C$47 -> 18227.61083 | F47: =F48*$C$47 -> 18227.61083 | G47: 18227.61083 | J47: 18227.61083 | K47: 18227.61083 | L47: 18227.61083 | M47: 18227.61083 | N47: 18227.61083 | O47: 18227.61083 | P47: 18227.61083 | Q47: 18227.61083 | R47: 18227.61083 | S47: 18227.61083 | T47: 18227.61083 | U47: 18227.61083 | V47: 18227.61083 | W47: 18227.61083 | X47: 18227.61083 | Y47: 18227.61083 | Z47: 18227.61083 | AA47: 18227.61083 | AB47: 18227.61083 | AC47: 18227.61083 | AD47: =SUM(D47:AC47) -> 437462.66
D48: =100%/24 -> 0.04166666667 | E48: =100%/24 -> 0.04166666667 | F48: 0.04166666667 | G48: 0.04166666667 | J48: 0.04166666667 | K48: 0.04166666667 | L48: 0.04166666667 | M48: 0.04166666667 | N48: 0.04166666667 | O48: 0.04166666667 | P48: 0.04166666667 | Q48: 0.04166666667 | R48: 0.04166666667 | S48: 0.04166666667 | T48: 0.04166666667 | U48: 0.04166666667 | V48: 0.04166666667 | W48: 0.04166666667 | X48: 0.04166666667 | Y48: 0.04166666667 | Z48: 0.04166666667 | AA48: 0.04166666667 | AB48: 0.04166666667 | AC48: 0.04166666667 | AD48: =SUM(D48:AC48) -> 1
B50: NO MÊS | D50: =D5+D7+D9+D11+D13+D15+D17+D19+D21+D23+D25+D27+D29+D31+D33+D35+D37+D39+D41+D43++D45+D47 -> 56949.13853 | E50: =E5+E7+E9+E11+E13+E15+E17+E19+E21+E23+E25+E27+E29+E31+E33+E35+E37+E39+E41+E43++E45+E47 -> 56949.13853 | F50: =F5+F7+F9+F11+F13+F15+F17+F19+F21+F23+F25+F27+F29+F31+F33+F35+F37+F39+F41+F43++F45+F47 -> 128072.9152 | G50: =G5+G7+G9+G11+G13+G15+G17+G19+G21+G23+G25+G27+G29+G31+G33+G35+G37+G39+G41+G43++G45+G47 -> 64861.32153 | H50: 38721.52769 | I50: 38721.52769 | J50: 217963.3205 | K50: 217963.3205 | L50: 222074.2075 | M50: 229932.9233 | N50: 225015.3893 | O50: 225015.3893 | P50: 225015.3893 | Q50: 246686.1166 | R50: 225015.3893 | S50: 241768.5826 | T50: 225015.3893 | U50: 222880.8545 | V50: 217963.3205 | W50: 217963.3205 | X50: 217963.3205 | Y50: 226991.8579 | Z50: 217963.3205 | AA50: 217963.3205 | AB50: 222880.8545 | AC50: 210051.1375 | AD50: =SUM(D50:AC50) -> 4858362.294
D51: =D50/SUM($C$5:$C$48) -> 0.01172187946 | E51: 0.01172187946 | F51: 0.02636133421 | G51: 0.0133504494 | H51: 0.007970078068 | I51: 0.007970078068 | J51: 0.04486353675 | K51: 0.04486353675 | L51: 0.04570968337 | M51: 0.04732724813 | N51: 0.0463150688 | O51: 0.0463150688 | P51: 0.0463150688 | Q51: 0.05077556917 | R51: 0.0463150688 | S51: 0.04976338984 | T51: 0.0463150688 | U51: 0.04587571608 | V51: 0.04486353675 | W51: 0.04486353675 | X51: 0.04486353675 | Y51: 0.04672188666 | Z51: 0.04486353675 | AA51: 0.04486353675 | AB51: 0.04587571608 | AC51: 0.04323496681 | AD51: =SUM(D51:AC51) -> 0.999999976
C52: DESEMBOLSO (80% do Subproduto) | D52: =D50*0.8 -> 45559.31082 | E52: =E50*0.8 -> 45559.31082 | F52: 102458.3322 | G52: 51889.05722 | H52: 30977.22215 | I52: 30977.22215 | J52: 174370.6564 | K52: 174370.6564 | L52: 177659.366 | M52: 183946.3386 | N52: 180012.3114 | O52: 180012.3114 | P52: 180012.3114 | Q52: 197348.8933 | R52: 180012.3114 | S52: 193414.8661 | T52: 180012.3114 | U52: 178304.6836 | V52: 174370.6564 | W52: 174370.6564 | X52: 174370.6564 | Y52: 181593.4863 | Z52: 174370.6564 | AA52: 174370.6564 | AB52: 178304.6836 | AC52: =AD50-SUM(D52:AB52) -> 1139713.369 | AD52: =SUM(D52:AC52) -> 4858362.294
D53: =D52/SUM($C$5:$C$48) -> 0.009377503565 | E53: 0.009377503565 | F53: 0.02108906737 | G53: 0.01068035952 | H53: 0.006376062455 | I53: 0.006376062455 | J53: 0.0358908294 | K53: 0.0358908294 | L53: 0.0365677467 | M53: 0.0378617985 | N53: 0.03705205504 | O53: 0.03705205504 | P53: 0.03705205504 | Q53: 0.04062045534 | R53: 0.03705205504 | S53: 0.03981071187 | T53: 0.03705205504 | U53: 0.03670057286 | V53: 0.0358908294 | W53: 0.0358908294 | X53: 0.0358908294 | Y53: 0.03737750933 | Z53: 0.0358908294 | AA53: 0.0358908294 | AB53: 0.03670057286 | AC53: 0.2345879687 | AD53: =SUM(D53:AC53) -> 0.999999976
B54: ACUMULADO | D54: =D50 -> 56949.13853 | E54: =D54+E50 -> 113898.2771 | F54: 241971.1922 | G54: 306832.5138 | H54: =G54+H50 -> 345554.0415 | I54: =H54+I50 -> 384275.5692 | J54: =I54+J50 -> 602238.8897 | K54: =J54+K50 -> 820202.2102 | L54: =K54+L50 -> 1042276.418 | M54: =L54+M50 -> 1272209.341 | N54: =M54+N50 -> 1497224.73 | O54: =N54+O50 -> 1722240.12 | P54: =O54+P50 -> 1947255.509 | Q54: =P54+Q50 -> 2193941.625 | R54: =Q54+R50 -> 2418957.015 | S54: =R54+S50 -> 2660725.597 | T54: =S54+T50 -> 2885740.987 | U54: =T54+U50 -> 3108621.841 | V54: =U54+V50 -> 3326585.162 | W54: =V54+W50 -> 3544548.482 | X54: =W54+X50 -> 3762511.803 | Y54: =X54+Y50 -> 3989503.661 | Z54: =Y54+Z50 -> 4207466.981 | AA54: =Z54+AA50 -> 4425430.302 | AB54: =AA54+AB50 -> 4648311.156 | AC54: =AB54+AC50 -> 4858362.294
D55: =D51 -> 0.01172187946 | E55: 0.02344375891 | F55: 0.04980509312 | G55: 0.06315554252 | H55: 0.07112562059 | I55: 0.07909569866 | J55: 0.1239592354 | K55: 0.1688227722 | L55: 0.2145324555 | M55: 0.2618597037 | N55: 0.3081747725 | O55: 0.3544898413 | P55: 0.4008049101 | Q55: 0.4515804792 | R55: 0.497895548 | S55: 0.5476589379 | T55: 0.5939740067 | U55: 0.6398497228 | V55: 0.6847132595 | W55: 0.7295767963 | X55: 0.774440333 | Y55: 0.8211622197 | Z55: 0.8660257564 | AA55: 0.9108892932 | AB55: 0.9567650092 | AC55: 0.999999976

Sheet CPU-VEICULO_PickUp
A5: Composição de Preços de Locação de Veículo tipo pick-up
B6: Data de atualização: | C6: 2025-01-22 | E6: CV | F6: Média | G6: Mediana | K6: CV | L6: Média | M6: Mediana | V6: CV | W6: Média | X6: Mediana
A7: CODEVASF | E7: =_xlfn.STDEV.S(E10:H10)/AVERAGE(E10:H10) -> 0.09461804749 | F7: =AVERAGE(E10:H10) -> 200477 | G7: =MEDIAN(E10:H10) -> 205565.5 | K7: =_xlfn.STDEV.S(L9:S9)/AVERAGE(L9:S9) -> 0.2049193683 | L7: =AVERAGE(L9:S9) -> 34.54857143 | M7: =MEDIAN(L9:S9) -> 30.91 | V7: =_xlfn.STDEV.S(W9:AD9)/AVERAGE(W9:AD9) -> 0.1241023561 | W7: =AVERAGE(W9:AD9) -> 499.0190625 | X7: =MEDIAN(W9:AD9) -> 499.45
A8: OBS: Preço sem BDI e sem motorista BDI= | E8: Preço FIPE | J8: PRODUTO | K8: MENOR (MÉDIA, MEDIANA) | L8: COT. 1 | M8: COT. 2 | N8: COT. 3 | O8: COT. 4 | P8: COT. 5 | Q8: COT. 6 | R8: COT. 7 | S8: COT. 8 | U8: PRODUTO | V8: MENOR (MÉDIA, MEDIANA) | W8: COT. 1 | X8: COT. 2 | Y8: COT. 3 | Z8: COT. 4 | AA8: COT. 5 | AB8: COT. 6 | AC8: COT. 7 | AD8: COT. 8
A9: Veículo tipo pick-up, cabine dupla - 2.0 16V 4x4 diesel Aut. | E9: Toro Ultra 2.0 16V 4x4 TB Diesel Aut. | F9: Toro Freedom 2.0 16V 4x4 TB Diesel Aut. | G9: Toro Volcano 2.0 16V 4x4 TB Diesel Aut. | H9: Toro Ranch 2.0 16V 4x4 TB Diesel Aut. | J9: LUBRIFICANTE 5W30 | K9: =SMALL(L7:M7,1) -> 30.91 | L9: 33.33 | M9: 26.9 | N9: 30.9 | O9: 30.9 | P9: 30.91 | Q9: 46 | R9: 42.9 | U9: Pneu 225/65 R17 | V9: =SMALL(W7:X7,1) -> 499.0190625 | W9: 499 | X9: 479.9 | Y9: 565.25 | Z9: 393.38 | AA9: 449.9 | AB9: =2059.44/4 -> 514.86 | AC9: =2359.85/4 -> 589.9625 | AD9: 499.9
B10: Custo Mensal (R$): | C10: =C51 -> 3840.702352 | E10: 215525 | F10: 175252 | G10: 196485 | H10: 214646
B11: Custo Diária (R$): | C11: =C10/22 -> 174.5773796
B12: Custo Horário (R$): | C12: =C10/176 -> 21.82217245
A13: A | B13: Depreciação mensal do equipamento
A14: A1 | B14: Preço de Aquisição | C14: =SMALL(F7:G7,1) -> 200477
A15: A2 | B15: Tempo previsto de vida útil (meses) | C15: 36
A16: A3 | B16: Previsão de recup. Na venda do bem usado | C16: 0.7
A17: A4 | B17: Custo mensal [A1-(A3xA1)]/A2 | C17: =(C14-(C16*C14))/C15 -> 1670.641667
A18: B | B18: Juros pelo Capital empregado
A19: B1 | B19: Taxa mensal de Juros * | C19: =POWER(1+C56,1/12)-1 -> 0.01171491692
A20: B2 | B20: Juros s/depreciação/aluguel (B1xA4) | C20: =C19*C17 -> 19.57142833
A21: C | B21: Conservação e manutenção ** | C21: 0.75
A22: C1 | B22: Taxa de gastos s/a deprec. Inc. seguros (%) | C22: =C21 -> 0.75 | AF22: PREÇO DO DIESEL | AG22: 6.1
A23: C2 | B23: Incidência mensal (C1xA4) | C23: =C22*C17 -> 1252.98125 | AF23: https://precos.petrobras.com.br/sele%C3%A7%C3%A3o-de-estados-diesel
A24: D | B24: Combustível
A25: D1 | B25: Média mensal de quilômetro por veículo | C25: =60*22 -> 1320
A26: D2 | B26: Preço do litro de combustível | C26: =AG22 -> 6.1
A27: D3 | B27: Quilômetros rodados com um litro combustivel | C27: 10
A28: D4 | B28: Combustivel (D1/D3)*D2 | C28: =(C25/C27)*C26 -> 805.2
A29: E | B29: Lubrificantes
A30: E1 | B30: Quilometragem do Contrato (D1*12) | C30: =C25*36 -> 47520
A31: E2 | B31: Franquia por troca de óleo (km) | C31: 10000
A32: E3 | B32: Preço do litro de óleo | C32: =K9 -> 30.91
A33: E4 | B33: Quantidade de litros de óleo por troca | C33: 5
A34: E5 | B34: Quantidade de dias do Contrato | C34: =365*3 -> 1095
A35: E6 | B35: Lubrificantes E = (E1*E3*E4*30)/E2*E5 | C35: =(C30*C32*C33*30)/(C31*C34) -> 20.12113973
A36: F | B36: Pneus
A37: F1 | B37: Quilometragem do Contrato | C37: =C30 -> 47520
A38: F2 | B38: Vida do Pneu em quilômetros | C38: 45000
A39: F3 | B39: Quantidade de pneus | C39: 5
A40: F4 | B40: Preço do Pneu | C40: =V9 -> 499.0190625
A41: F5 | B41: Quantidade de dias do contrato | C41: =C34 -> 1095
A42: F6 | B42: Pneus = (F1*F3*F4*30)/(F2*F5) | C42: =(C37*C39*C40*30)/(C38*C41) -> 72.18686712
A43: G | B43: Motorista
A44: G1 | B44: Salário com encargos sociais | C44: 0
A45: H | B45: Custo Mensal
B46: Sem Motorista (A4+B2+C2+D4+E6+F6) | C46: =C17+C20+C23+C28+C35+C42 -> 3840.702352
B47: Com Motorista (A4+B2+C2+D4+E6+F6+G1) | C47: =C17+C20+C23+C28+C35+C42+C44 -> 3840.702352
A48: I | B48: Custo Direto p/ km Rodado
B49: Sem Motorista | C49: =C46/C25 -> 2.909622994
B50: Com Motorista | C50: =C47/C25 -> 2.909622994
A51: J | B51: Preço cobrado sem BDI | C51: =C46*(1+C8) -> 3840.702352
A52: J1 | B52: Sem Motorista | C52: =C51 -> 3840.702352
A53: J2 | B53: Com Motorista | C53: =C47 -> 3840.702352 | I53: https://www.google.com/search?q=lubrificante+5w30+1l&sa=X&sca_esv=c77f5342bf7e367a&tbm=shop&ei=e0uKZ-DcDNKp5OUPkOKj6QY&ved=0ahUKEwighoOy3_yKAxXSFLkGHRDxKG0Q4dUDCAg&uact=5&oq=lubrificante+5w30+1l&gs_lp=Egtwcm9kdWN0cy1jYyIUbHVicmlmaWNhbnRlIDV3MzAgMWxIgQ9Q4AlY8Q1wAHgAkAEAmAFroAGgA6oBAzEuM7gBA8gBAPgBAZgCAqAC0gHCAgUQABiABMICBhAAGAcYHsICBhAAGAgYHsICBhAAGBYYHpgDAIgGAZIHAzEuMaAHxQU&sclient=products-cc | T53: https://www.google.com/search?q=pneu+225%2F65+R17&sa=X&biw=1600&bih=757&tbm=shop&sxsrf=AJOqlzWsb-d4PS1_OUOEhKmRc2RbtSg3RQ%3A1677092596279&ei=9Gb2Y9K5ENTa5OUPvLykGA&ved=0ahUKEwjSg9Pj6Kn9AhVULbkGHTweCQMQ4dUDCAg&uact=5&oq=pneu+225%2F65+R17&gs_lcp=Cgtwcm9kdWN0cy1jYxADMgsIABCABBCxAxCDATIFCAAQgAQyBwgAEIAEEAoyBwgAEIAEEAoyBwgAEIAEEAoyBwgAEIAEEAoyBwgAEIAEEAoyBQgAEIAEMgcIABCABBAKMgcIABCABBAKOgQIIxAnOgQIABBDSgQIQRgAUABYoTJgqUBoAHAAeACAAdIFiAGUKZIBDTAuMi42LjIuMi4yLjGYAQCgAQHAAQE&sclient=products-cc
B55: OBSERVAÇÕES:
A56: * | B56: Calculado com base na taxa SELIC JANEIRO/2025: | C56: 0.15
B57: Taxa de Juros Selic — Português (Brasil) (www.gov.br)
A58: ** | B58: Conservação e manutenção - é calculado com o uso de um coeficiente multiplicador "k", conforme tabela abaixo, sobre a
B59: depreciação mensal do equipamento (Item A da planilha de composição de preços). Os valores de K são fornecidos por
B60: fabricantes.
B61: Metodologia conforme a bibliografia "Como Preparar Orçamentos de Obras", 3 edição, Aldo Dórea Mattos, 2019.

Sheet CPU-VEICULO_Leve
A2: Composição de Preços de Locação de Veículos
B3: 2023-08-23 | C3: Data de atualização: | D3: 2025-01-22 | F3: CV | G3: Média | H3: Mediana | L3: CV | M3: Média | N3: Mediana | X3: CV | Y3: Média | Z3: Mediana
A4: CODEVASF | F4: =_xlfn.STDEV.S(F7:I7)/AVERAGE(F7:I7) -> 0.1466333998 | G4: =AVERAGE(F7:I7) -> 75224.5 | H4: =MEDIAN(F7:I7) -> 74407.5 | L4: =_xlfn.STDEV.S(M6:U6)/AVERAGE(M6:U6) -> 0.1572234728 | M4: =AVERAGE(M6:U6) -> 26.76888889 | N4: =MEDIAN(M6:U6) -> 27.12 | X4: =_xlfn.STDEV.S(Y6:AG6)/AVERAGE(Y6:AG6) -> 0.1621894985 | Y4: =AVERAGE(Y6:AG6) -> 329.1444444 | Z4: =MEDIAN(Y6:AG6) -> 334.75
A5: OBS: Preço sem BDI e sem motorista BDI= | F5: Preço FIPE | K5: PRODUTO | L5: MENOR | M5: COT. 1 | N5: COT. 2 | O5: COT. 3 | P5: COT. 4 | Q5: COT. 5 | R5: COT. 6 | S5: COT. 7 | T5: COT. 8 | U5: COT. 9 | W5: PRODUTO | X5: MENOR | Y5: COT. 1 | Z5: COT. 2 | AA5: COT. 3 | AB5: COT. 4 | AC5: COT. 5 | AD5: COT. 6 | AE5: COT. 7 | AF5: COT. 8 | AG5: COT. 9
A6: Veículo Leve 1.0 T. Flex 12V 5p | F6: Renault Kwid Zen 1.0 | G6: Hyndai HB20 Sense 1.0 | H6: ONIX HATCH LT 1.0 12V Flex 5p Mec. | I6: MOBI TREKKING 1.0 Flex 5p. | K6: LUBRIFICANTE 15W40 | L6: =SMALL(M4:N4,1) -> 26.76888889 | M6: 27.12 | N6: 19.01 | O6: 28.9 | P6: 23.9 | Q6: 28.76 | R6: 33.9 | S6: 29.44 | T6: 24.9 | U6: 24.99 | W6: Pneu 185/65 R14 | X6: =SMALL(Y4:Z4,1) -> 329.1444444 | Y6: 289.9 | Z6: =1255.8/4 -> 313.95 | AA6: 289 | AB6: =1339/4 -> 334.75 | AC6: =1519.6/4 -> 379.9 | AD6: 231 | AE6: 364.9 | AF6: =718/2 -> 359 | AG6: =799.8/2 -> 399.9
C7: Custo Mensal (R$): | D7: =D48 -> 1728.735447 | F7: 63868 | G7: 80150 | H7: 88215 | I7: 68665
C8: Custo Diário (R$): | D8: =D7/30 -> 57.62451491
C9: Custo Horário (R$): | D9: =D7/176 -> 9.822360496
A10: A | C10: Depreciação mensal do equipamento
A11: A1 | C11: Preço de Aquisição | D11: =SMALL(G4:H4,1) -> 74407.5
A12: A2 | C12: Tempo previsto de vida útil (meses) | D12: 36
A13: A3 | C13: Previsão de recup. Na venda do bem usado | D13: 0.7
A14: A4 | C14: Custo mensal [A1-(A3xA1)]/A2 | D14: =(D11-(D13*D11))/D12 -> 620.0625
A15: B | C15: Juros pelo Capital empregado
A16: B1 | C16: Taxa mensal de Juros * | D16: =POWER(1+D53,1/12)-1 -> 0.01171491692
A17: B2 | C17: Juros s/depreciação/aluguel (B1xA4) | D17: =D16*D14 -> 7.263980673
A18: C | C18: Conservação e manutenção ** | D18: 0.75
A19: C1 | C19: Taxa de gastos s/a deprec. Inc. seguros (%) | D19: =D18 -> 0.75
A20: C2 | C20: Incidência mensal (C1xA4) | D20: =D19*D14 -> 465.046875
A21: D | C21: Combustível
A22: D1 | C22: Média mensal de quilômetro por veículo | D22: =60*22 -> 1320
A23: D2 | C23: Preço do litro de combustível | D23: =G82 -> 6.14
A24: D3 | C24: Quilômetros rodados com um litro combustivel | D24: =(12.8+13.3+15.3+15)/4 -> 14.1
A25: D4 | C25: Combustivel (D1/D3)*D2 | D25: =(D22/D24)*D23 -> 574.8085106
A26: E | C26: Lubrificantes
A27: E1 | C27: Quilometragem do Contrato (D1*12) | D27: =D22*36 -> 47520
A28: E2 | C28: Franquia por troca de óleo (km) | D28: 10000
A29: E3 | C29: Preço do litro de óleo | D29: =L6 -> 26.76888889
A30: E4 | C30: Quantidade de litros de óleo por troca | D30: 4
A31: E5 | C31: Quantidade de dias do Contrato | D31: =365*3 -> 1095
A32: E6 | C32: Lubrificantes E = (E1*E3*E4*30)/E2*E5 | D32: =(D27*D29*D30*30)/(D28*D31) -> 13.94035726
A33: F | C33: Pneus
A34: F1 | C34: Quilometragem do Contrato | D34: =D27 -> 47520
A35: F2 | C35: Vida do Pneu em quilômetros | D35: 45000
A36: F3 | C36: Quantidade de pneus | D36: 5
A37: F4 | C37: Preço do Pneu | D37: =X6 -> 329.1444444
A38: F5 | C38: Quantidade de dias do contrato | D38: =D31 -> 1095
A39: F6 | C39: Pneus = (F1*F3*F4*30)/(F2*F5) | D39: =(D34*D36*D37*30)/(D35*D38) -> 47.61322374
A40: G | C40: Motorista
A41: G1 | C41: Salário com encargos sociais | D41: 0
A42: H | C42: Custo Mensal | K42: https://www.google.com/search?q=lubrificante+15w40+1l&sa=X&biw=1600&bih=757&tbm=shop&sxsrf=AJOqlzUezMM_9i0M4NKjKqAMycLuOygp_g%3A1677158931166&ei=E2r3Y5e2CcH31sQPsK67CA&ved=0ahUKEwjXi8vy36v9AhXBu5UCHTDXDgEQ4dUDCAg&uact=5&oq=lubrificante+15w40+1l&gs_lcp=Cgtwcm9kdWN0cy1jYxADMgsIABAWEB4Q8QQQGDoICAAQgAQQsAM6CQgAEAcQHhCwAzoJCAAQCBAeELADOgkIABAeELADEBg6DggAEAUQHhDxBBCwAxAYOgUIABCABDoGCAAQFhAeOggIABAWEB4QGEoECEEYAVDeBFi3DWD0D2gBcAB4AIABpQWIAZAIkgEHMy0xLjAuMZgBAKABAcgBCsABAQ&sclient=products-cc
C43: Sem Motorista (A4+B2+C2+D4+E6+F6) | D43: =D14+D17+D20+D25+D32+D39 -> 1728.735447
C44: Com Motorista (A4+B2+C2+D4+E6+F6+G1) | D44: =D14+D17+D20+D25+D32+D39+D41 -> 1728.735447
A45: I | C45: Custo Direto p/ km Rodado
C46: Sem Motorista | D46: =D43/D22 -> 1.309648066 | V46: https://www.google.com/search?q=Pneu+185%2F65+R14&sa=X&hl=pt-BR&biw=1600&bih=757&tbm=shop&sxsrf=AJOqlzVJW-LYM1ZPHImwhsD-4UwyAvTluQ%3A1677158863331&ei=z2n3Y-uxE-zT1sQP0r-OmAs&ved=0ahUKEwir1Z7S36v9AhXsqZUCHdKfA7MQ4dUDCAg&uact=5&oq=Pneu+185%2F65+R14&gs_lcp=Cgtwcm9kdWN0cy1jYxADMgsIABCABBCxAxCDATIFCAAQgAQyBQgAEIAEMgUIABCABDIFCAAQgAQyBQgAEIAEMgUIABCABDIFCAAQgAQyBQgAEIAEMgUIABCABEoECEEYAFD5A1jGCWC1EGgAcAB4AIABrQmIAdcbkgEHNS0yLjAuMpgBAKABAcABAQ&sclient=products-cc
C47: Com Motorista | D47: =D44/D22 -> 1.309648066
A48: J | C48: Preço cobrado sem BDI | D48: =D43*(1+D5) -> 1728.735447
A49: J1 | C49: Sem Motorista | D49: =D48 -> 1728.735447
A50: J2 | C50: Com Motorista | D50: =D44 -> 1728.735447
A53: * | C53: Calculado com base na taxa SELIC JANEIRO/2025: | D53: 0.15
A55: ** | C55: Conservação e manutenção - é calculado com o uso de um coeficiente multiplicador "k", conforme tabela abaixo, sobre a
C56: depreciação mensal do equipamento (Item A da planilha de composição de preços). Os valores de K são fornecidos por
C57: fabricantes.
C58: Metodologia conforme a bibliografia "Como Preparar Orçamentos de Obras", 3 edição, Aldo Dórea Mattos, 2019.
F82: PREÇO DA GASOLINA | G82: 6.14
F84: https://precos.petrobras.com.br/sele%C3%A7%C3%A3o-de-estados-gasolina

Sheet CPU HOSPEDAGEM
B2: Engenharia Consultiva da Codevasf
B3: CPU - HOSPEDAGEM EQUIPE DE CAMPO (4 PESSOAS/MÊS) | D3: Código/Referencia
B4: ALUGUEL | C4: 3074.56 | D4: F020003334/EMBASA insumo
B5: Aquisição de Mobiliário | C5: =42.11*C16 -> 168.44 | D5: B8954/DNIT
B6: Material de limpeza e diarista | C6: =130.82+(123*8) -> 1114.82 | D6: 10563/ORSE - E200300131/EMBASA
B7: manutenção da casa alugada - Serviços Gerais/Vigia | C7: 2771.31 | D7: 41096/SINAPI
B8: Energia | C8: 180 | D8: 10555/ORSE
B9: Água | C9: 394.99 | D9: 10554/ORSE
B10: telefone/Internet | C10: =154.99+89 -> 243.99 | D10: 10557/10558/ORSE
B11: IPTU (mês) | C11: =(C4*0.5)/12 -> 128.1066667
B13: Custo Mensal: | C13: =SUM(C4:C12) -> 8076.216667
B14: Custo Mensal por pessoa: | C14: =C13/C16 -> 2019.054167
B15: Custo diário por pessoa: | C15: =C14/22 -> 91.77518939
B16: número de pessoas: | C16: 4
B17: Alimentação: | C17: 100.59 | D17: Tabela Diária Codevasf 2024
B19: Diária Total (alimentação + hospedagem): | C19: =C15+C17 -> 192.3651894

Sheet CPU ESCRIT. CONTAINER
B2: Engenharia Consultiva da Codevasf
B3: CPU - HOSPEDAGEM EQUIPE DE CAMPO (4 PESSOAS/MÊS) | D3: Código/Referencia
B4: ALUGUEL CONTAINER ESCRITÓRIO C/ BANHEIRO | C4: =1600*2 -> 3200 | D4: 4298/ORSE
B5: Aquisição de Mobiliário | C5: ='AUX - MOBILIÁRIO'!F10 -> 286.17 | D5: CODE
B6: Material de limpeza e diarista | C6: =130.82+(123*8) -> 1114.82 | D6: 10563/ORSE - E200300131/EMBASA
B7: Energia | C7: 180 | D7: 10555/ORSE
B8: Mobilização e Desmobilização | C8: =1200*2/24 -> 100 | D8: 89.50.20/89.50.21/SUDECAP-MG
B9: Água | C9: 394.99 | D9: 10554/ORSE
B10: telefone/Internet | C10: =154.99+89 -> 243.99 | D10: 10557/10558/ORSE
B14: Custo Mensal: | C14: =SUM(C4:C13) -> 5519.97
B15: Custo Mensal por pessoa: | C15: =C14/C17 -> 613.33
B16: Custo diário por pessoa: | C16: =C15/22 -> 27.87863636
B17: número de pessoas: | C17: 9

Sheet MDO - DNIT
A1: Código | B1: Categoria | C1: Unid. | D1: Salário | E1: Encargos Sociais | G1: Encargos Complementares | Q1: Encargos Adicionais | W1: Encargos Totais | Y1: Valor Total
G2: Alimentação | I2: EPI | K2: Ferramenta | M2: Transporte | O2: Exame Ocupacional | Q2: Cesta Básica | S2: Assistência Médica | U2: Seguro de Vida
D3: R$ | E3: % | F3: R$ | G3: % | H3: R$ | I3: % | J3: R$ | K3: % | L3: R$ | M3: % | N3: R$ | O3: % | P3: R$ | Q3: % | R3: R$ | S3: % | T3: R$ | U3: % | V3: R$ | W3: % | X3: R$ | Y3: R$
A4: P8001 | B4: Advogado júnior | C4: mês | D4: 4939.72 | E4: 79.39 | F4: 3921.65 | G4: 14.91 | H4: 736.74 | I4: 0.55 | J4: 27.13 | K4: 0 | L4: 0 | M4: 0 | N4: 0 | O4: 0.06 | P4: 3.02 | Q4: 0 | R4: 0 | S4: 6.36 | T4: 314.2 | U4: 0.2 | V4: 9.98 | W4: 101.48 | X4: 5012.72 | Y4: 9952.44 | Z4: =Y4-D4-F4 -> 1091.07
A5: P8002 | B5: Advogado pleno | C5: mês | D5: 6586.3 | E5: 79.39 | F5: 5228.86 | G5: 11.19 | H5: 736.74 | I5: 0.41 | J5: 27.13 | K5: 0 | L5: 0 | M5: 0 | N5: 0 | O5: 0.05 | P5: 3.02 | Q5: 0 | R5: 0 | S5: 4.77 | T5: 314.2 | U5: 0.15 | V5: 9.98 | W5: 95.96 | X5: 6319.94 | Y5: 12906.23 | Z5: =Y5-D5-F5 -> 1091.07
A6: P8003 | B6: Advogado sênior | C6: mês | D6: 12088.9 | E6: 79.39 | F6: 9597.38 | G6: 6.09 | H6: 736.74 | I6: 0.22 | J6: 27.13 | K6: 0 | L6: 0 | M6: 0 | N6: 0 | O6: 0.02 | P6: 3.02 | Q6: 0 | R6: 0 | S6: 2.6 | T6: 314.2 | U6: 0.08 | V6: 9.98 | W6: 88.42 | X6: 10688.45 | Y6: 22777.35 | Z6: 1091.07
A7: P8007 | B7: Analista de desenvolvimento de sistemas júnior | C7: mês | D7: 4251.21 | E7: 79.59 | F7: 3383.54 | G7: 17.33 | H7: 736.74 | I7: 0 | J7: 0 | K7: 0 | L7: 0 | M7: 0 | N7: 0 | O7: 0.08 | P7: 3.27 | Q7: 0 | R7: 0 | S7: 7.39 | T7: 314.2 | U7: 0.23 | V7: 9.98 | W7: 104.62 | X7: 4447.73 | Y7: 8698.95 | Z7: 1064.2
A8: P8008 | B8: Analista de desenvolvimento de sistemas pleno | C8: mês | D8: 5668.29 | E8: 79.59 | F8: 4511.39 | G8: 13 | H8: 736.74 | I8: 0 | J8: 0 | K8: 0 | L8: 0 | M8: 0 | N8: 0 | O8: 0.06 | P8: 3.27 | Q8: 0 | R8: 0 | S8: 5.54 | T8: 314.2 | U8: 0.18 | V8: 9.98 | W8: 98.36 | X8: 5575.58 | Y8: 11243.87 | Z8: 1064.19
A9: P8009 | B9: Analista de desenvolvimento de sistemas sênior | C9: mês | D9: 10092 | E9: 79.59 | F9: 8032.22 | G9: 7.3 | H9: 736.74 | I9: 0 | J9: 0 | K9: 0 | L9: 0 | M9: 0 | N9: 0 | O9: 0.03 | P9: 3.27 | Q9: 0 | R9: 0 | S9: 3.11 | T9: 314.2 | U9: 0.1 | V9: 9.98 | W9: 90.13 | X9: 9096.41 | Y9: 19188.41 | Z9: 1064.19
A10: P8013 | B10: Arquiteto júnior | C10: mês | D10: 12903 | E10: 79.43 | F10: 10248.85 | G10: 5.71 | H10: 736.74 | I10: 0.21 | J10: 27.13 | K10: 0 | L10: 0 | M10: 0 | N10: 0 | O10: 0.02 | P10: 2.8 | Q10: 0 | R10: 0 | S10: 2.44 | T10: 314.2 | U10: 0.08 | V10: 9.98 | W10: 87.88 | X10: 11339.71 | Y10: 24242.71 | Z10: 1090.86
A11: P8014 | B11: Arquiteto pleno | C11: mês | D11: 14712.81 | E11: 79.43 | F11: 11686.39 | G11: 5.01 | H11: 736.74 | I11: 0.18 | J11: 27.13 | K11: 0 | L11: 0 | M11: 0 | N11: 0 | O11: 0.02 | P11: 2.8 | Q11: 0 | R11: 0 | S11: 2.14 | T11: 314.2 | U11: 0.07 | V11: 9.98 | W11: 86.84 | X11: 12777.24 | Y11: 27490.05 | Z11: 1090.85
A12: P8015 | B12: Arquiteto sênior | C12: mês | D12: 16522.62 | E12: 79.43 | F12: 13123.92 | G12: 4.46 | H12: 736.74 | I12: 0.16 | J12: 27.13 | K12: 0 | L12: 0 | M12: 0 | N12: 0 | O12: 0.02 | P12: 2.8 | Q12: 0 | R12: 0 | S12: 1.9 | T12: 314.2 | U12: 0.06 | V12: 9.98 | W12: 86.03 | X12: 14214.77 | Y12: 30737.39 | Z12: 1090.85
A13: P8019 | B13: Assistente social júnior | C13: mês | D13: 3362.83 | E13: 80.12 | F13: 2694.3 | G13: 21.91 | H13: 736.74 | I13: 0.81 | J13: 27.13 | K13: 0 | L13: 0 | M13: 1.4 | N13: 47.13 | O13: 0.13 | P13: 4.22 | Q13: 0 | R13: 0 | S13: 9.34 | T13: 314.2 | U13: 0.3 | V13: 9.98 | W13: 114 | X13: 3833.7 | Y13: 7196.53 | Z13: 1139.4
A14: P8020 | B14: Assistente social pleno | C14: mês | D14: 4483.77 | E14: 80.12 | F14: 3592.4 | G14: 16.43 | H14: 736.74 | I14: 0.61 | J14: 27.13 | K14: 0 | L14: 0 | M14: 0 | N14: 0 | O14: 0.09 | P14: 4.22 | Q14: 0 | R14: 0 | S14: 7.01 | T14: 314.2 | U14: 0.22 | V14: 9.98 | W14: 104.48 | X14: 4684.67 | Y14: 9168.44 | Z14: 1092.27
A15: P8021 | B15: Assistente social sênior | C15: mês | D15: 7579.69 | E15: 80.12 | F15: 6072.85 | G15: 9.72 | H15: 736.74 | I15: 0.36 | J15: 27.13 | K15: 0 | L15: 0 | M15: 0 | N15: 0 | O15: 0.06 | P15: 4.22 | Q15: 0 | R15: 0 | S15: 4.15 | T15: 314.2 | U15: 0.13 | V15: 9.98 | W15: 94.53 | X15: 7165.12 | Y15: 14744.81 | Z15: 1092.27
A16: P8025 | B16: Auxiliar | C16: mês | D16: 1665.28 | E16: 81.72 | F16: 1360.86 | G16: 44.24 | H16: 736.74 | I16: 1.98 | J16: 33.03 | K16: 0.1 | L16: 1.69 | M16: 8.95 | N16: 148.98 | O16: 0.34 | P16: 5.64 | Q16: 0 | R16: 0 | S16: 18.87 | T16: 314.2 | U16: 0.6 | V16: 9.98 | W16: 156.8 | X16: 2611.13 | Y16: 4276.41 | Z16: 1250.27
A17: P8026 | B17: Auxiliar administrativo | C17: mês | D17: 1931.52 | E17: 80.33 | F17: 1551.59 | G17: 38.14 | H17: 736.74 | I17: 0 | J17: 0 | K17: 0 | L17: 0 | M17: 6.89 | N17: 133.01 | O17: 0.24 | P17: 4.65 | Q17: 0 | R17: 0 | S17: 16.27 | T17: 314.2 | U17: 0.52 | V17: 9.98 | W17: 142.38 | X17: 2750.17 | Y17: 4681.69 | Z17: 1198.58
A18: P8027 | B18: Auxiliar de laboratório | C18: mês | D18: 1836.99 | E18: 80.41 | F18: 1477.12 | G18: 40.11 | H18: 736.74 | I18: 1.8 | J18: 33.03 | K18: 0.19 | L18: 3.49 | M18: 7.55 | N18: 138.68 | O18: 0.21 | P18: 3.86 | Q18: 0 | R18: 0 | S18: 17.1 | T18: 314.2 | U18: 0.54 | V18: 9.98 | W18: 147.91 | X18: 2717.1 | Y18: 4554.09 | Z18: 1239.98
A19: P8028 | B19: Auxiliar de topografia | C19: mês | D19: 1665.28 | E19: 80.6 | F19: 1342.21 | G19: 44.24 | H19: 736.74 | I19: 1.98 | J19: 33.03 | K19: 0.09 | L19: 1.47 | M19: 8.95 | N19: 148.98 | O19: 0.24 | P19: 4.06 | Q19: 0 | R19: 0 | S19: 18.87 | T19: 314.2 | U19: 0.6 | V19: 9.98 | W19: 155.57 | X19: 2590.68 | Y19: 4255.96 | Z19: 1248.47
A20: P8032 | B20: Biólogo júnior | C20: mês | D20: 3225.03 | E20: 79.75 | F20: 2571.96 | G20: 22.84 | H20: 736.74 | I20: 0.84 | J20: 27.13 | K20: 0 | L20: 0 | M20: 1.72 | N20: 55.4 | O20: 0.11 | P20: 3.47 | Q20: 0 | R20: 0 | S20: 9.74 | T20: 314.2 | U20: 0.31 | V20: 9.98 | W20: 115.31 | X20: 3718.88 | Y20: 6943.91 | Z20: 1146.92
A21: P8033 | B21: Biólogo pleno | C21: mês | D21: 4300.04 | E21: 79.75 | F21: 3429.28 | G21: 17.13 | H21: 736.74 | I21: 0.63 | J21: 27.13 | K21: 0 | L21: 0 | M21: 0 | N21: 0 | O21: 0.08 | P21: 3.47 | Q21: 0 | R21: 0 | S21: 7.31 | T21: 314.2 | U21: 0.23 | V21: 9.98 | W21: 105.13 | X21: 4520.81 | Y21: 8820.85 | Z21: 1091.53
A22: P8034 | B22: Biólogo sênior | C22: mês | D22: 7780.45 | E22: 79.75 | F22: 6204.91 | G22: 9.47 | H22: 736.74 | I22: 0.35 | J22: 27.13 | K22: 0 | L22: 0 | M22: 0 | N22: 0 | O22: 0.04 | P22: 3.47 | Q22: 0 | R22: 0 | S22: 4.04 | T22: 314.2 | U22: 0.13 | V22: 9.98 | W22: 93.78 | X22: 7296.43 | Y22: 15076.89 | Z22: 1091.53
A23: P8038 | B23: Chefe de escritório | C23: mês | D23: 3574.77 | E23: 79.5 | F23: 2841.94 | G23: 20.61 | H23: 736.74 | I23: 0 | J23: 0 | K23: 0 | L23: 0 | M23: 0.96 | N23: 34.41 | O23: 0.07 | P23: 2.55 | Q23: 0 | R23: 0 | S23: 8.79 | T23: 314.2 | U23: 0.28 | V23: 9.98 | W23: 110.21 | X23: 3939.83 | Y23: 7514.6 | Z23: 1097.89
A24: P8040 | B24: Contador júnior | C24: mês | D24: 4357.59 | E24: 79.5 | F24: 3464.28 | G24: 16.91 | H24: 736.74 | I24: 0 | J24: 0 | K24: 0 | L24: 0 | M24: 0 | N24: 0 | O24: 0.06 | P24: 2.6 | Q24: 0 | R24: 0 | S24: 7.21 | T24: 314.2 | U24: 0.23 | V24: 9.98 | W24: 103.91 | X24: 4527.8 | Y24: 8885.39 | Z24: 1063.52
A25: P8041 | B25: Contador pleno | C25: mês | D25: 5810.11 | E25: 79.5 | F25: 4619.04 | G25: 12.68 | H25: 736.74 | I25: 0 | J25: 0 | K25: 0 | L25: 0 | M25: 0 | N25: 0 | O25: 0.04 | P25: 2.6 | Q25: 0 | R25: 0 | S25: 5.41 | T25: 314.2 | U25: 0.17 | V25: 9.98 | W25: 97.8 | X25: 5682.56 | Y25: 11492.68 | Z25: 1063.53
A26: P8042 | B26: Contador sênior | C26: mês | D26: 11135.61 | E26: 79.5 | F26: 8852.81 | G26: 6.62 | H26: 736.74 | I26: 0 | J26: 0 | K26: 0 | L26: 0 | M26: 0 | N26: 0 | O26: 0.02 | P26: 2.6 | Q26: 0 | R26: 0 | S26: 2.82 | T26: 314.2 | U26: 0.09 | V26: 9.98 | W26: 89.05 | X26: 9916.34 | Y26: 21051.95 | Z26: 1063.53
A27: P8044 | B27: Coordenador ambiental | C27: mês | D27: 18152.96 | E27: 79.92 | F27: 14507.85 | G27: 4.06 | H27: 736.74 | I27: 0.14 | J27: 24.78 | K27: 0 | L27: 0 | M27: 0 | N27: 0 | O27: 0.02 | P27: 4.08 | Q27: 0 | R27: 0 | S27: 1.73 | T27: 314.2 | U27: 0.05 | V27: 9.98 | W27: 85.92 | X27: 15597.62 | Y27: 33750.59 | Z27: 1089.78
A28: P8045 | B28: Economista júnior | C28: mês | D28: 4833.48 | E28: 78.7 | F28: 3803.95 | G28: 15.24 | H28: 736.74 | I28: 0 | J28: 0 | K28: 0 | L28: 0 | M28: 0 | N28: 0 | O28: 0.04 | P28: 1.84 | Q28: 0 | R28: 0 | S28: 6.5 | T28: 314.2 | U28: 0.21 | V28: 9.98 | W28: 100.69 | X28: 4866.71 | Y28: 9700.18 | Z28: 1062.75
A29: P8046 | B29: Economista pleno | C29: mês | D29: 6444.64 | E29: 78.7 | F29: 5071.93 | G29: 11.43 | H29: 736.74 | I29: 0 | J29: 0 | K29: 0 | L29: 0 | M29: 0 | N29: 0 | O29: 0.03 | P29: 1.84 | Q29: 0 | R29: 0 | S29: 4.88 | T29: 314.2 | U29: 0.15 | V29: 9.98 | W29: 95.19 | X29: 6134.69 | Y29: 12579.32 | Z29: 1062.75
A30: P8047 | B30: Economista sênior | C30: mês | D30: 9829.99 | E30: 78.7 | F30: 7736.2 | G30: 7.49 | H30: 736.74 | I30: 0 | J30: 0 | K30: 0 | L30: 0 | M30: 0 | N30: 0 | O30: 0.02 | P30: 1.84 | Q30: 0 | R30: 0 | S30: 3.2 | T30: 314.2 | U30: 0.1 | V30: 9.98 | W30: 89.51 | X30: 8798.96 | Y30: 18628.95 | Z30: 1062.76
A31: P8054 | B31: Engenheiro agrônomo júnior | C31: mês | D31: 12903 | E31: 79.36 | F31: 10239.82 | G31: 5.71 | H31: 736.74 | I31: 0.21 | J31: 27.13 | K31: 0 | L31: 0 | M31: 0 | N31: 0 | O31: 0.02 | P31: 3.02 | Q31: 0 | R31: 0 | S31: 2.44 | T31: 314.2 | U31: 0.08 | V31: 9.98 | W31: 87.82 | X31: 11330.9 | Y31: 24233.9 | Z31: 1091.08
A32: P8055 | B32: Engenheiro agrônomo pleno | C32: mês | D32: 13740.95 | E32: 79.36 | F32: 10904.81 | G32: 5.36 | H32: 736.74 | I32: 0.2 | J32: 27.13 | K32: 0 | L32: 0 | M32: 0 | N32: 0 | O32: 0.02 | P32: 3.02 | Q32: 0 | R32: 0 | S32: 2.29 | T32: 314.2 | U32: 0.07 | V32: 9.98 | W32: 87.3 | X32: 11995.89 | Y32: 25736.84 | Z32: 1091.08
A33: P8056 | B33: Engenheiro agrônomo sênior | C33: mês | D33: 14578.89 | E33: 79.36 | F33: 11569.81 | G33: 5.05 | H33: 736.74 | I33: 0.19 | J33: 27.13 | K33: 0 | L33: 0 | M33: 0 | N33: 0 | O33: 0.02 | P33: 3.02 | Q33: 0 | R33: 0 | S33: 2.16 | T33: 314.2 | U33: 0.07 | V33: 9.98 | W33: 86.84 | X33: 12660.88 | Y33: 27239.78 | Z33: 1091.08
A34: P8057 | B34: Engenheiro ambiental júnior | C34: mês | D34: 12903 | E34: 80.28 | F34: 10358.53 | G34: 5.71 | H34: 736.74 | I34: 0.21 | J34: 27.13 | K34: 0 | L34: 0 | M34: 0 | N34: 0 | O34: 0.04 | P34: 4.63 | Q34: 0 | R34: 0 | S34: 2.44 | T34: 314.2 | U34: 0.08 | V34: 9.98 | W34: 88.75 | X34: 11451.21 | Y34: 24354.21 | Z34: 1092.68
A35: P8058 | B35: Engenheiro ambiental pleno | C35: mês | D35: 14125.9 | E35: 80.28 | F35: 11340.28 | G35: 5.22 | H35: 736.74 | I35: 0.19 | J35: 27.13 | K35: 0 | L35: 0 | M35: 0 | N35: 0 | O35: 0.03 | P35: 4.63 | Q35: 0 | R35: 0 | S35: 2.22 | T35: 314.2 | U35: 0.07 | V35: 9.98 | W35: 88.02 | X35: 12432.96 | Y35: 26558.86 | Z35: 1092.68
A36: P8059 | B36: Engenheiro ambiental sênior | C36: mês | D36: 15348.81 | E36: 80.28 | F36: 12322.02 | G36: 4.8 | H36: 736.74 | I36: 0.18 | J36: 27.13 | K36: 0 | L36: 0 | M36: 0 | N36: 0 | O36: 0.03 | P36: 4.63 | Q36: 0 | R36: 0 | S36: 2.05 | T36: 314.2 | U36: 0.07 | V36: 9.98 | W36: 87.4 | X36: 13414.7 | Y36: 28763.51 | Z36: 1092.68
A37: P8060 | B37: Engenheiro consultor especial | C37: mês | D37: 22750.26 | E37: 79.78 | F37: 18150.16 | G37: 3.24 | H37: 736.74 | I37: 0.11 | J37: 24.78 | K37: 0 | L37: 0 | M37: 0 | N37: 0 | O37: 0.02 | P37: 3.75 | Q37: 0 | R37: 0 | S37: 1.38 | T37: 314.2 | U37: 0.04 | V37: 9.98 | W37: 84.57 | X37: 19239.61 | Y37: 41989.87 | Z37: 1089.45
A38: P8061 | B38: Engenheiro coordenador | C38: mês | D38: 18958.55 | E38: 79.78 | F38: 15125.13 | G38: 3.89 | H38: 736.74 | I38: 0.13 | J38: 24.78 | K38: 0 | L38: 0 | M38: 0 | N38: 0 | O38: 0.02 | P38: 3.75 | Q38: 0 | R38: 0 | S38: 1.66 | T38: 314.2 | U38: 0.05 | V38: 9.98 | W38: 85.53 | X38: 16214.58 | Y38: 35173.13 | Z38: 1089.45
A39: P8062 | B39: Engenheiro de pesca júnior | C39: mês | D39: 12903 | E39: 80.15 | F39: 10341.75 | G39: 5.71 | H39: 736.74 | I39: 0.21 | J39: 27.13 | K39: 0 | L39: 0 | M39: 0 | N39: 0 | O39: 0.03 | P39: 3.5 | Q39: 0 | R39: 0 | S39: 2.44 | T39: 314.2 | U39: 0.08 | V39: 9.98 | W39: 88.61 | X39: 11433.3 | Y39: 24336.3 | Z39: 1091.55
A40: P8063 | B40: Engenheiro de pesca pleno | C40: mês | D40: 13978.87 | E40: 80.15 | F40: 11204.06 | G40: 5.27 | H40: 736.74 | I40: 0.19 | J40: 27.13 | K40: 0 | L40: 0 | M40: 0 | N40: 0 | O40: 0.03 | P40: 3.5 | Q40: 0 | R40: 0 | S40: 2.25 | T40: 314.2 | U40: 0.07 | V40: 9.98 | W40: 87.96 | X40: 12295.61 | Y40: 26274.48 | Z40: 1091.55
A41: P8064 | B41: Engenheiro de pesca sênior | C41: mês | D41: 15054.74 | E41: 80.15 | F41: 12066.37 | G41: 4.89 | H41: 736.74 | I41: 0.18 | J41: 27.13 | K41: 0 | L41: 0 | M41: 0 | N41: 0 | O41: 0.02 | P41: 3.5 | Q41: 0 | R41: 0 | S41: 2.09 | T41: 314.2 | U41: 0.07 | V41: 9.98 | W41: 87.4 | X41: 13157.92 | Y41: 28212.66 | Z41: 1091.55
A42: P8065 | B42: Engenheiro de projetos júnior | C42: mês | D42: 12903 | E42: 79.78 | F42: 10294.01 | G42: 5.71 | H42: 736.74 | I42: 0.21 | J42: 27.13 | K42: 0 | L42: 0 | M42: 0 | N42: 0 | O42: 0.03 | P42: 3.75 | Q42: 0 | R42: 0 | S42: 2.44 | T42: 314.2 | U42: 0.08 | V42: 9.98 | W42: 88.24 | X42: 11385.81 | Y42: 24288.81 | Z42: 1091.8
A43: P8066 | B43: Engenheiro de projetos pleno | C43: mês | D43: 14740.22 | E43: 79.78 | F43: 11759.75 | G43: 5 | H43: 736.74 | I43: 0.18 | J43: 27.13 | K43: 0 | L43: 0 | M43: 0 | N43: 0 | O43: 0.03 | P43: 3.75 | Q43: 0 | R43: 0 | S43: 2.13 | T43: 314.2 | U43: 0.07 | V43: 9.98 | W43: 87.19 | X43: 12851.55 | Y43: 27591.76 | Z43: 1091.79
A44: P8067 | B44: Engenheiro de projetos sênior | C44: mês | D44: 16577.43 | E44: 79.78 | F44: 13225.48 | G44: 4.44 | H44: 736.74 | I44: 0.16 | J44: 27.13 | K44: 0 | L44: 0 | M44: 0 | N44: 0 | O44: 0.02 | P44: 3.75 | Q44: 0 | R44: 0 | S44: 1.9 | T44: 314.2 | U44: 0.06 | V44: 9.98 | W44: 86.37 | X44: 14317.28 | Y44: 30894.71 | Z44: 1091.8
A45: P8068 | B45: Engenheiro florestal júnior | C45: mês | D45: 12903 | E45: 80.15 | F45: 10341.75 | G45: 5.71 | H45: 736.74 | I45: 0.21 | J45: 27.13 | K45: 0 | L45: 0 | M45: 0 | N45: 0 | O45: 0.03 | P45: 3.5 | Q45: 0 | R45: 0 | S45: 2.44 | T45: 314.2 | U45: 0.08 | V45: 9.98 | W45: 88.61 | X45: 11433.3 | Y45: 24336.3 | Z45: 1091.55
A46: P8069 | B46: Engenheiro florestal pleno | C46: mês | D46: 13978.87 | E46: 80.15 | F46: 11204.06 | G46: 5.27 | H46: 736.74 | I46: 0.19 | J46: 27.13 | K46: 0 | L46: 0 | M46: 0 | N46: 0 | O46: 0.03 | P46: 3.5 | Q46: 0 | R46: 0 | S46: 2.25 | T46: 314.2 | U46: 0.07 | V46: 9.98 | W46: 87.96 | X46: 12295.61 | Y46: 26274.48 | Z46: 1091.55
A47: P8070 | B47: Engenheiro florestal sênior | C47: mês | D47: 15054.74 | E47: 80.15 | F47: 12066.37 | G47: 4.89 | H47: 736.74 | I47: 0.18 | J47: 27.13 | K47: 0 | L47: 0 | M47: 0 | N47: 0 | O47: 0.02 | P47: 3.5 | Q47: 0 | R47: 0 | S47: 2.09 | T47: 314.2 | U47: 0.07 | V47: 9.98 | W47: 87.4 | X47: 13157.92 | Y47: 28212.66 | Z47: 1091.55
A48: P8080 | B48: Geólogo júnior | C48: mês | D48: 12903 | E48: 80.24 | F48: 10353.37 | G48: 5.5 | H48: 709.66 | I48: 0.21 | J48: 27.13 | K48: 0 | L48: 0 | M48: 0 | N48: 0 | O48: 0.03 | P48: 3.76 | Q48: 0 | R48: 0 | S48: 2.44 | T48: 314.2 | U48: 0.08 | V48: 9.98 | W48: 88.49 | X48: 11418.09 | Y48: 24321.09 | Z48: 1064.72
A49: P8081 | B49: Geólogo pleno | C49: mês | D49: 13712.52 | E49: 80.24 | F49: 11002.93 | G49: 5.18 | H49: 709.66 | I49: 0.2 | J49: 27.13 | K49: 0 | L49: 0 | M49: 0 | N49: 0 | O49: 0.03 | P49: 3.76 | Q49: 0 | R49: 0 | S49: 2.29 | T49: 314.2 | U49: 0.07 | V49: 9.98 | W49: 88 | X49: 12067.66 | Y49: 25780.18 | Z49: 1064.73
A50: P8082 | B50: Geólogo sênior | C50: mês | D50: 14522.05 | E50: 80.24 | F50: 11652.49 | G50: 4.89 | H50: 709.66 | I50: 0.19 | J50: 27.13 | K50: 0 | L50: 0 | M50: 0 | N50: 0 | O50: 0.03 | P50: 3.76 | Q50: 0 | R50: 0 | S50: 2.16 | T50: 314.2 | U50: 0.07 | V50: 9.98 | W50: 87.57 | X50: 12717.22 | Y50: 27239.27 | Z50: 1064.73
A51: P8092 | B51: Jornalista júnior | C51: mês | D51: 3280.26 | E51: 79.6 | F51: 2611.09 | G51: 22.46 | H51: 736.74 | I51: 0.83 | J51: 27.13 | K51: 0 | L51: 0 | M51: 1.59 | N51: 52.08 | O51: 0.08 | P51: 2.49 | Q51: 0 | R51: 0 | S51: 9.58 | T51: 314.2 | U51: 0.3 | V51: 9.98 | W51: 114.43 | X51: 3753.72 | Y51: 7033.98 | Z51: 1142.63
A52: P8093 | B52: Jornalista pleno | C52: mês | D52: 4373.69 | E52: 79.6 | F52: 3481.45 | G52: 16.84 | H52: 736.74 | I52: 0.62 | J52: 27.13 | K52: 0 | L52: 0 | M52: 0 | N52: 0 | O52: 0.06 | P52: 2.49 | Q52: 0 | R52: 0 | S52: 7.18 | T52: 314.2 | U52: 0.23 | V52: 9.98 | W52: 104.53 | X52: 4572 | Y52: 8945.68 | Z52: 1090.54
A53: P8094 | B53: Jornalista sênior | C53: mês | D53: 8312.62 | E53: 79.6 | F53: 6616.84 | G53: 8.86 | H53: 736.74 | I53: 0.33 | J53: 27.13 | K53: 0 | L53: 0 | M53: 0 | N53: 0 | O53: 0.03 | P53: 2.49 | Q53: 0 | R53: 0 | S53: 3.78 | T53: 314.2 | U53: 0.12 | V53: 9.98 | W53: 92.72 | X53: 7707.39 | Y53: 16020 | Z53: 1090.54
A54: P8098 | B54: Laboratorista | C54: mês | D54: 2449.31 | E54: 80.41 | F54: 1969.49 | G54: 30.08 | H54: 736.74 | I54: 1.24 | J54: 30.41 | K54: 0 | L54: 0 | M54: 4.16 | N54: 101.94 | O54: 0.16 | P54: 3.86 | Q54: 0 | R54: 0 | S54: 12.83 | T54: 314.2 | U54: 0.41 | V54: 9.98 | W54: 129.29 | X54: 3166.63 | Y54: 5615.95 | Z54: 1197.15
A55: P8102 | B55: Médico veterinário | C55: mês | D55: 12903 | E55: 79.12 | F55: 10208.85 | G55: 5.71 | H55: 736.74 | I55: 0.21 | J55: 27.13 | K55: 0 | L55: 0 | M55: 0 | N55: 0 | O55: 0.02 | P55: 2.68 | Q55: 0 | R55: 0 | S55: 2.44 | T55: 314.2 | U55: 0.08 | V55: 9.98 | W55: 87.57 | X55: 11299.58 | Y55: 24202.58 | Z55: 1090.73
A56: P8106 | B56: Meteorologista júnior | C56: mês | D56: 5337.05 | E56: 79.75 | F56: 4256.3 | G56: 13.8 | H56: 736.74 | I56: 0.51 | J56: 27.13 | K56: 0 | L56: 0 | M56: 0 | N56: 0 | O56: 0.05 | P56: 2.68 | Q56: 0 | R56: 0 | S56: 5.89 | T56: 314.2 | U56: 0.19 | V56: 9.98 | W56: 100.19 | X56: 5347.03 | Y56: 10684.08 | Z56: 1090.73
A57: P8107 | B57: Meteorologista pleno | C57: mês | D57: 7116.07 | E57: 79.75 | F57: 5675.07 | G57: 10.35 | H57: 736.74 | I57: 0.38 | J57: 27.13 | K57: 0 | L57: 0 | M57: 0 | N57: 0 | O57: 0.04 | P57: 2.68 | Q57: 0 | R57: 0 | S57: 4.42 | T57: 314.2 | U57: 0.14 | V57: 9.98 | W57: 95.08 | X57: 6765.8 | Y57: 13881.87 | Z57: 1090.73
A58: P8108 | B58: Meteorologista sênior | C58: mês | D58: 11704.98 | E58: 79.75 | F58: 9334.72 | G58: 6.29 | H58: 736.74 | I58: 0.23 | J58: 27.13 | K58: 0 | L58: 0 | M58: 0 | N58: 0 | O58: 0.02 | P58: 2.68 | Q58: 0 | R58: 0 | S58: 2.68 | T58: 314.2 | U58: 0.09 | V58: 9.98 | W58: 89.07 | X58: 10425.45 | Y58: 22130.43 | Z58: 1090.73
A59: P8112 | B59: Motorista de caminhão | C59: mês | D59: 2472.47 | E59: 80.57 | F59: 1992.07 | G59: 29.8 | H59: 736.74 | I59: 1.34 | J59: 33.03 | K59: 0 | L59: 0 | M59: 4.07 | N59: 100.55 | O59: 0.16 | P59: 3.97 | Q59: 0 | R59: 0 | S59: 12.71 | T59: 314.2 | U59: 0.4 | V59: 9.98 | W59: 129.04 | X59: 3190.54 | Y59: 5663 | Z59: 1198.46
A60: P8113 | B60: Motorista de veículo leve | C60: mês | D60: 2160.31 | E60: 80.11 | F60: 1730.63 | G60: 34.1 | H60: 736.74 | I60: 1.53 | J60: 33.03 | K60: 0 | L60: 0 | M60: 5.52 | N60: 119.28 | O60: 0.16 | P60: 3.48 | Q60: 0 | R60: 0 | S60: 14.54 | T60: 314.2 | U60: 0.46 | V60: 9.98 | W60: 136.43 | X60: 2947.34 | Y60: 5107.65 | Z60: 1216.71
A61: P8117 | B61: Oceanógrafo júnior | C61: mês | D61: 4764.92 | E61: 82.55 | F61: 3933.44 | G61: 15.46 | H61: 736.74 | I61: 0.57 | J61: 27.13 | K61: 0 | L61: 0 | M61: 0 | N61: 0 | O61: 0.12 | P61: 5.7 | Q61: 0 | R61: 0 | S61: 6.59 | T61: 314.2 | U61: 0.21 | V61: 9.98 | W61: 105.5 | X61: 5027.19 | Y61: 9792.12 | Z61: 1093.76
A62: P8118 | B62: Oceanógrafo pleno | C62: mês | D62: 6353.23 | E62: 82.55 | F62: 5244.59 | G62: 11.6 | H62: 736.74 | I62: 0.43 | J62: 27.13 | K62: 0 | L62: 0 | M62: 0 | N62: 0 | O62: 0.09 | P62: 5.7 | Q62: 0 | R62: 0 | S62: 4.95 | T62: 314.2 | U62: 0.16 | V62: 9.98 | W62: 99.77 | X62: 6338.34 | Y62: 12691.57 | Z62: 1093.75
A63: P8119 | B63: Oceanógrafo sênior | C63: mês | D63: 11634.21 | E63: 82.55 | F63: 9604.04 | G63: 6.33 | H63: 736.74 | I63: 0.23 | J63: 27.13 | K63: 0 | L63: 0 | M63: 0 | N63: 0 | O63: 0.05 | P63: 5.7 | Q63: 0 | R63: 0 | S63: 2.7 | T63: 314.2 | U63: 0.09 | V63: 9.98 | W63: 91.95 | X63: 10697.79 | Y63: 22332 | Z63: 1093.75
A64: P8129 | B64: Pedagogo júnior | C64: mês | D64: 2518.27 | E64: 97.74 | F64: 2461.35 | G64: 29.26 | H64: 736.74 | I64: 1.08 | J64: 27.13 | K64: 0 | L64: 0 | M64: 3.88 | N64: 97.8 | O64: 0.16 | P64: 4.14 | Q64: 0 | R64: 0 | S64: 12.48 | T64: 314.2 | U64: 0.4 | V64: 9.98 | W64: 144.99 | X64: 3651.35 | Y64: 6169.62 | Z64: 1190
A65: P8130 | B65: Pedagogo pleno | C65: mês | D65: 3357.69 | E65: 97.74 | F65: 3281.81 | G65: 21.94 | H65: 736.74 | I65: 0.81 | J65: 27.13 | K65: 0 | L65: 0 | M65: 1.41 | N65: 47.44 | O65: 0.12 | P65: 4.14 | Q65: 0 | R65: 0 | S65: 9.36 | T65: 314.2 | U65: 0.3 | V65: 9.98 | W65: 131.68 | X65: 4421.44 | Y65: 7779.13 | Z65: 1139.63
A66: P8131 | B66: Pedagogo sênior | C66: mês | D66: 4447.62 | E66: 97.74 | F66: 4347.11 | G66: 16.56 | H66: 736.74 | I66: 0.61 | J66: 27.13 | K66: 0 | L66: 0 | M66: 0 | N66: 0 | O66: 0.09 | P66: 4.14 | Q66: 0 | R66: 0 | S66: 7.06 | T66: 314.2 | U66: 0.22 | V66: 9.98 | W66: 122.3 | X66: 5439.3 | Y66: 9886.92 | Z66: 1092.19
A67: P8135 | B67: Secretária | C67: mês | D67: 2841.65 | E67: 80.43 | F67: 2285.54 | G67: 25.93 | H67: 736.74 | I67: 0 | J67: 0 | K67: 0 | L67: 0 | M67: 2.76 | N67: 78.4 | O67: 0.16 | P67: 4.47 | Q67: 0 | R67: 0 | S67: 11.06 | T67: 314.2 | U67: 0.35 | V67: 9.98 | W67: 120.68 | X67: 3429.33 | Y67: 6270.98 | Z67: 1143.79
A68: P8139 | B68: Sondador | C68: mês | D68: 2149.64 | E68: 80.12 | F68: 1722.29 | G68: 34.27 | H68: 736.74 | I68: 1.41 | J68: 30.41 | K68: 0 | L68: 0 | M68: 5.58 | N68: 119.92 | O68: 0.21 | P68: 4.58 | Q68: 0 | R68: 0 | S68: 14.62 | T68: 314.2 | U68: 0.46 | V68: 9.98 | W68: 136.68 | X68: 2938.13 | Y68: 5087.77 | Z68: 1215.84
A69: P8143 | B69: Técnico ambiental | C69: mês | D69: 2987.19 | E69: 80.75 | F69: 2412.15 | G69: 24.66 | H69: 736.74 | I69: 1.02 | J69: 30.41 | K69: 0 | L69: 0 | M69: 2.33 | N69: 69.67 | O69: 0.16 | P69: 4.7 | Q69: 0 | R69: 0 | S69: 10.52 | T69: 314.2 | U69: 0.33 | V69: 9.98 | W69: 119.77 | X69: 3577.85 | Y69: 6565.04 | Z69: =Y69-D69-F69 -> 1165.7
A70: P8147 | B70: Técnico de obras | C70: mês | D70: 3268.63 | E70: 80.27 | F70: 2623.73 | G70: 22.54 | H70: 736.74 | I70: 0.93 | J70: 30.41 | K70: 0 | L70: 0 | M70: 1.61 | N70: 52.78 | O70: 0.11 | P70: 3.67 | Q70: 0 | R70: 0 | S70: 9.61 | T70: 314.2 | U70: 0.31 | V70: 9.98 | W70: 115.39 | X70: 3771.51 | Y70: 7040.14 | Z70: 1147.78
A71: P8151 | B71: Técnico de segurança do trabalho | C71: mês | D71: 4601.83 | E71: 80.95 | F71: 3725.18 | G71: 16.01 | H71: 736.74 | I71: 0.66 | J71: 30.41 | K71: 0 | L71: 0 | M71: 0 | N71: 0 | O71: 0.1 | P71: 4.4 | Q71: 0 | R71: 0 | S71: 6.83 | T71: 314.2 | U71: 0.22 | V71: 9.98 | W71: 104.76 | X71: 4820.92 | Y71: 9422.75 | Z71: 1095.74
A72: P8155 | B72: Técnico em geoprocessamento | C72: mês | D72: 2908.72 | E72: 79.52 | F72: 2313.01 | G72: 25.33 | H72: 736.74 | I72: 1.05 | J72: 30.41 | K72: 0 | L72: 0 | M72: 2.56 | N72: 74.38 | O72: 0.11 | P72: 3.2 | Q72: 0 | R72: 0 | S72: 10.8 | T72: 314.2 | U72: 0.34 | V72: 9.98 | W72: 119.71 | X72: 3481.93 | Y72: 6390.65 | Z72: 1168.92
A73: P8163 | B73: Topógrafo | C73: mês | D73: 2558.11 | E73: 80.6 | F73: 2061.84 | G73: 28.8 | H73: 736.74 | I73: 1.19 | J73: 30.41 | K73: 0 | L73: 0 | M73: 3.73 | N73: 95.41 | O73: 0.16 | P73: 4.06 | Q73: 0 | R73: 0 | S73: 12.28 | T73: 314.2 | U73: 0.39 | V73: 9.98 | W73: 127.15 | X73: 3252.65 | Y73: 5810.76 | Z73: 1190.81
A74: P8167 | B74: Arquivista júnior | C74: mês | D74: 2646.43 | E74: 80.13 | F74: 2120.58 | G74: 27.84 | H74: 736.74 | I74: 0 | J74: 0 | K74: 0 | L74: 0 | M74: 3.41 | N74: 90.11 | O74: 0.15 | P74: 4.01 | Q74: 0 | R74: 0 | S74: 11.87 | T74: 314.2 | U74: 0.38 | V74: 9.98 | W74: 123.78 | X74: 3275.63 | Y74: 5922.06 | Z74: 1155.05
A75: P8168 | B75: Arquivista pleno | C75: mês | D75: 3528.57 | E75: 80.13 | F75: 2827.44 | G75: 20.88 | H75: 736.74 | I75: 0 | J75: 0 | K75: 0 | L75: 0 | M75: 1.05 | N75: 37.19 | O75: 0.11 | P75: 4.01 | Q75: 0 | R75: 0 | S75: 8.9 | T75: 314.2 | U75: 0.28 | V75: 9.98 | W75: 111.36 | X75: 3929.57 | Y75: 7458.14 | Z75: 1102.13
A76: P8169 | B76: Arquivista sênior | C76: mês | D76: 5691.23 | E76: 80.13 | F76: 4560.39 | G76: 12.95 | H76: 736.74 | I76: 0 | J76: 0 | K76: 0 | L76: 0 | M76: 0 | N76: 0 | O76: 0.07 | P76: 4.01 | Q76: 0 | R76: 0 | S76: 5.52 | T76: 314.2 | U76: 0.18 | V76: 9.98 | W76: 98.84 | X76: 5625.33 | Y76: 11316.56 | Z76: 1064.94
A77: P8173 | B77: Administrador júnior | C77: mês | D77: 3537.16 | E77: 79.7 | F77: 2819.12 | G77: 20.83 | H77: 736.74 | I77: 0 | J77: 0 | K77: 0 | L77: 0 | M77: 1.04 | N77: 36.67 | O77: 0.1 | P77: 3.42 | Q77: 0 | R77: 0 | S77: 8.88 | T77: 314.2 | U77: 0.28 | V77: 9.98 | W77: 110.83 | X77: 3920.13 | Y77: 7457.29 | Z77: 1101.01
A78: P8174 | B78: Administrador pleno | C78: mês | D78: 4716.22 | E78: 79.7 | F78: 3758.82 | G78: 15.62 | H78: 736.74 | I78: 0 | J78: 0 | K78: 0 | L78: 0 | M78: 0 | N78: 0 | O78: 0.07 | P78: 3.42 | Q78: 0 | R78: 0 | S78: 6.66 | T78: 314.2 | U78: 0.21 | V78: 9.98 | W78: 102.27 | X78: 4823.17 | Y78: 9539.38 | Z78: 1064.34
A79: P8175 | B79: Administrador sênior | C79: mês | D79: 8501.66 | E79: 79.7 | F79: 6775.82 | G79: 8.67 | H79: 736.74 | I79: 0 | J79: 0 | K79: 0 | L79: 0 | M79: 0 | N79: 0 | O79: 0.04 | P79: 3.42 | Q79: 0 | R79: 0 | S79: 3.7 | T79: 314.2 | U79: 0.12 | V79: 9.98 | W79: 92.22 | X79: 7840.17 | Y79: 16341.82 | Z79: 1064.34
A80: P8180 | B80: Engenheiro agrimensor júnior | C80: mês | D80: 12903 | E80: 80.06 | F80: 10330.14 | G80: 5.71 | H80: 736.74 | I80: 0.21 | J80: 27.13 | K80: 0 | L80: 0 | M80: 0 | N80: 0 | O80: 0.04 | P80: 4.83 | Q80: 0 | R80: 0 | S80: 2.44 | T80: 314.2 | U80: 0.08 | V80: 9.98 | W80: 88.53 | X80: 11423.03 | Y80: 24326.03 | Z80: 1092.89
A81: P8181 | B81: Engenheiro agrimensor pleno | C81: mês | D81: 13824.31 | E81: 80.06 | F81: 11067.74 | G81: 5.33 | H81: 736.74 | I81: 0.2 | J81: 27.13 | K81: 0 | L81: 0 | M81: 0 | N81: 0 | O81: 0.03 | P81: 4.83 | Q81: 0 | R81: 0 | S81: 2.27 | T81: 314.2 | U81: 0.07 | V81: 9.98 | W81: 87.97 | X81: 12160.63 | Y81: 25984.93 | Z81: 1092.88
A82: P8182 | B82: Engenheiro agrimensor sênior | C82: mês | D82: 14745.61 | E82: 80.06 | F82: 11805.34 | G82: 5 | H82: 736.74 | I82: 0.18 | J82: 27.13 | K82: 0 | L82: 0 | M82: 0 | N82: 0 | O82: 0.03 | P82: 4.83 | Q82: 0 | R82: 0 | S82: 2.13 | T82: 314.2 | U82: 0.07 | V82: 9.98 | W82: 87.47 | X82: 12898.22 | Y82: 27643.84 | Z82: 1092.89
A83: P8183 | B83: Geógrafo júnior | C83: mês | D83: 4048.9 | E83: 79.76 | F83: 3229.4 | G83: 18.2 | H83: 736.74 | I83: 0.67 | J83: 27.13 | K83: 0 | L83: 0 | M83: 0.15 | N83: 5.97 | O83: 0.09 | P83: 3.52 | Q83: 0 | R83: 0 | S83: 7.76 | T83: 314.2 | U83: 0.25 | V83: 9.98 | W83: 106.87 | X83: 4326.94 | Y83: 8375.83 | Z83: 1097.53
A84: P8184 | B84: Geógrafo pleno | C84: mês | D84: 5398.53 | E84: 79.76 | F84: 4305.87 | G84: 13.65 | H84: 736.74 | I84: 0.5 | J84: 27.13 | K84: 0 | L84: 0 | M84: 0 | N84: 0 | O84: 0.07 | P84: 3.52 | Q84: 0 | R84: 0 | S84: 5.82 | T84: 314.2 | U84: 0.18 | V84: 9.98 | W84: 99.98 | X84: 5397.44 | Y84: 10795.97 | Z84: 1091.57
A85: P8185 | B85: Geógrafo sênior | C85: mês | D85: 10648.45 | E85: 79.76 | F85: 8493.21 | G85: 6.92 | H85: 736.74 | I85: 0.25 | J85: 27.13 | K85: 0 | L85: 0 | M85: 0 | N85: 0 | O85: 0.03 | P85: 3.52 | Q85: 0 | R85: 0 | S85: 2.95 | T85: 314.2 | U85: 0.09 | V85: 9.98 | W85: 90.01 | X85: 9584.78 | Y85: 20233.23 | Z85: 1091.57
A86: P8186 | B86: Antropólogo júnior | C86: mês | D86: 3475.42 | E86: 86.23 | F86: 2996.85 | G86: 21.2 | H86: 736.74 | I86: 0.78 | J86: 27.13 | K86: 0 | L86: 0 | M86: 1.16 | N86: 40.37 | O86: 0.27 | P86: 9.4 | Q86: 0 | R86: 0 | S86: 9.04 | T86: 314.2 | U86: 0.29 | V86: 9.98 | W86: 118.97 | X86: 4134.68 | Y86: 7610.1 | Z86: 1137.83
A87: P8187 | B87: Antropólogo pleno | C87: mês | D87: 4633.89 | E87: 86.23 | F87: 3995.8 | G87: 15.9 | H87: 736.74 | I87: 0.59 | J87: 27.13 | K87: 0 | L87: 0 | M87: 0 | N87: 0 | O87: 0.2 | P87: 9.4 | Q87: 0 | R87: 0 | S87: 6.78 | T87: 314.2 | U87: 0.22 | V87: 9.98 | W87: 109.91 | X87: 5093.26 | Y87: 9727.15 | Z87: 1097.46
A88: P8188 | B88: Antropólogo sênior | C88: mês | D88: 7387.64 | E88: 86.23 | F88: 6370.36 | G88: 9.97 | H88: 736.74 | I88: 0.37 | J88: 27.13 | K88: 0 | L88: 0 | M88: 0 | N88: 0 | O88: 0.13 | P88: 9.4 | Q88: 0 | R88: 0 | S88: 4.25 | T88: 314.2 | U88: 0.14 | V88: 9.98 | W88: 101.09 | X88: 7467.81 | Y88: 14855.45 | Z88: 1097.45
A89: P8189 | B89: Arqueólogo júnior | C89: mês | D89: 2929.4 | E89: 84.6 | F89: 2478.27 | G89: 25.15 | H89: 736.74 | I89: 0.93 | J89: 27.13 | K89: 0 | L89: 0 | M89: 2.5 | N89: 73.14 | O89: 0.28 | P89: 8.16 | Q89: 0 | R89: 0 | S89: 10.73 | T89: 314.2 | U89: 0.34 | V89: 9.98 | W89: 124.52 | X89: 3647.61 | Y89: 6577.01 | Z89: 1169.34
A90: P8190 | B90: Arqueólogo pleno | C90: mês | D90: 3905.86 | E90: 84.6 | F90: 3304.36 | G90: 18.86 | H90: 736.74 | I90: 0.69 | J90: 27.13 | K90: 0 | L90: 0 | M90: 0.37 | N90: 14.55 | O90: 0.21 | P90: 8.16 | Q90: 0 | R90: 0 | S90: 8.04 | T90: 314.2 | U90: 0.26 | V90: 9.98 | W90: 113.04 | X90: 4415.12 | Y90: 8320.98 | Z90: 1110.76
A91: P8191 | B91: Arqueólogo sênior | C91: mês | D91: 5849.34 | E91: 84.6 | F91: 4948.54 | G91: 12.6 | H91: 736.74 | I91: 0.46 | J91: 27.13 | K91: 0 | L91: 0 | M91: 0 | N91: 0 | O91: 0.14 | P91: 8.16 | Q91: 0 | R91: 0 | S91: 5.37 | T91: 314.2 | U91: 0.17 | V91: 9.98 | W91: 103.34 | X91: 6044.75 | Y91: 11894.09 | Z91: 1096.21
A92: P8192 | B92: Historiador júnior | C92: mês | D92: 4159.21 | E92: 81.91 | F92: 3406.81 | G92: 17.71 | H92: 736.74 | I92: 0.65 | J92: 27.13 | K92: 0 | L92: 0 | M92: 0 | N92: 0 | O92: 0.17 | P92: 7.01 | Q92: 0 | R92: 0 | S92: 7.55 | T92: 314.2 | U92: 0.24 | V92: 9.98 | W92: 108.24 | X92: 4501.87 | Y92: 8661.08 | Z92: 1095.06
A93: P8193 | B93: Historiador pleno | C93: mês | D93: 5545.62 | E93: 81.91 | F93: 4542.41 | G93: 13.29 | H93: 736.74 | I93: 0.49 | J93: 27.13 | K93: 0 | L93: 0 | M93: 0 | N93: 0 | O93: 0.13 | P93: 7.01 | Q93: 0 | R93: 0 | S93: 5.67 | T93: 314.2 | U93: 0.18 | V93: 9.98 | W93: 101.66 | X93: 5637.47 | Y93: 11183.09 | Z93: 1095.06
A94: P8194 | B94: Historiador sênior | C94: mês | D94: 8859.16 | E94: 81.91 | F94: 7256.54 | G94: 8.32 | H94: 736.74 | I94: 0.31 | J94: 27.13 | K94: 0 | L94: 0 | M94: 0 | N94: 0 | O94: 0.08 | P94: 7.01 | Q94: 0 | R94: 0 | S94: 3.55 | T94: 314.2 | U94: 0.11 | V94: 9.98 | W94: 94.27 | X94: 8351.59 | Y94: 17210.75 | Z94: 1095.05
A95: P8195 | B95: Paleontólogo júnior | C95: mês | D95: 3475.42 | E95: 86.23 | F95: 2996.85 | G95: 21.2 | H95: 736.74 | I95: 0.78 | J95: 27.13 | K95: 0 | L95: 0 | M95: 1.16 | N95: 40.37 | O95: 0.27 | P95: 9.4 | Q95: 0 | R95: 0 | S95: 9.04 | T95: 314.2 | U95: 0.29 | V95: 9.98 | W95: 118.97 | X95: 4134.68 | Y95: 7610.1 | Z95: 1137.83
A96: P8196 | B96: Paleontólogo pleno | C96: mês | D96: 4633.89 | E96: 86.23 | F96: 3995.8 | G96: 15.9 | H96: 736.74 | I96: 0.59 | J96: 27.13 | K96: 0 | L96: 0 | M96: 0 | N96: 0 | O96: 0.2 | P96: 9.4 | Q96: 0 | R96: 0 | S96: 6.78 | T96: 314.2 | U96: 0.22 | V96: 9.98 | W96: 109.91 | X96: 5093.26 | Y96: 9727.15 | Z96: 1097.46
A97: P8197 | B97: Paleontólogo sênior | C97: mês | D97: 7387.64 | E97: 86.23 | F97: 6370.36 | G97: 9.97 | H97: 736.74 | I97: 0.37 | J97: 27.13 | K97: 0 | L97: 0 | M97: 0 | N97: 0 | O97: 0.13 | P97: 9.4 | Q97: 0 | R97: 0 | S97: 4.25 | T97: 314.2 | U97: 0.14 | V97: 9.98 | W97: 101.09 | X97: 7467.81 | Y97: 14855.45 | Z97: 1097.45
A98: P8198 | B98: Sociólogo júnior | C98: mês | D98: 4336.84 | E98: 81.89 | F98: 3551.44 | G98: 16.99 | H98: 736.74 | I98: 0.63 | J98: 27.13 | K98: 0 | L98: 0 | M98: 0 | N98: 0 | O98: 0.16 | P98: 7.01 | Q98: 0 | R98: 0 | S98: 7.24 | T98: 314.2 | U98: 0.23 | V98: 9.98 | W98: 107.14 | X98: 4646.49 | Y98: 8983.33 | Z98: 1095.05
A99: P8199 | B99: Sociólogo pleno | C99: mês | D99: 5782.45 | E99: 81.89 | F99: 4735.25 | G99: 12.74 | H99: 736.74 | I99: 0.47 | J99: 27.13 | K99: 0 | L99: 0 | M99: 0 | N99: 0 | O99: 0.12 | P99: 7.01 | Q99: 0 | R99: 0 | S99: 5.43 | T99: 314.2 | U99: 0.17 | V99: 9.98 | W99: 100.83 | X99: 5830.31 | Y99: 11612.76 | Z99: 1095.06
A100: P8200 | B100: Sociólogo sênior | C100: mês | D100: 8917.47 | E100: 81.89 | F100: 7302.52 | G100: 8.26 | H100: 736.74 | I100: 0.3 | J100: 27.13 | K100: 0 | L100: 0 | M100: 0 | N100: 0 | O100: 0.08 | P100: 7.01 | Q100: 0 | R100: 0 | S100: 3.52 | T100: 314.2 | U100: 0.11 | V100: 9.98 | W100: 94.17 | X100: 8397.57 | Y100: 17315.04 | Z100: 1095.05
A101: P8264 | B101: Motorista de veículo leve - horista | C101: h | D101: 9.82 | E101: 113.26 | F101: 11.12 | G101: 41.11 | H101: 4.04 | I101: 1.84 | J101: 0.18 | K101: 0 | L101: 0 | M101: 6.66 | N101: 0.65 | O101: 0.19 | P101: 0.02 | Q101: 0 | R101: 0 | S101: 17.53 | T101: 1.72 | U101: 0.56 | V101: 0.05 | W101: 181.16 | X101: 17.79 | Y101: 27.61 | Z101: 6.67

Sheet C.G - DNIT
B1: 2025-04-01
B2: Tabela 1 - Custos de veículos
B3: ="Tabela de Preços de Consultoria - mês de referência: "&TEXT(B1,"MMMM")&" de "&TEXT(B1,"AAAA") -> Tabela de Preços de Consultoria - mês de referência: abril de 2025
B4: Item | C4: Código | D4: Tipo | E4: Unidade | F4: Custo unitário (R$ / un) | H4: S
F5: Produtivo | G5: Improdutivo
B6: Veículos | C6: E8889 | D6: Veículo leve - 53 kW (sem motorista) | F6: 36.69 | G6: 6.57
C7: E8890 | D7: Veículo leve - 53 kW (com motorista) | F7: 64.3 | G7: 34.18
C8: E8891 | D8: Veículo leve picape 4 x 4 com capacidade de 1,10 t - 147 kW (sem motorista) | F8: 79.6 | G8: 22.89
C9: E8888 | D9: Veículo tipo van furgão com capacidade de 1,38 t - 100 kW (sem motorista) | F9: 56.35 | G9: 17.21
C10: E8887 | D10: Veículo tipo van furgão com capacidade de 1,38 t - 100 kW (com motorista) | F10: 83.96 | G10: 44.82
B11: Fonte: FGV IBRE
B13: Tabela 2 - Custos de imóveis, mobiliário, cestas de instalações e custos diversos
B14: ="Tabela de Preços de Consultoria - mês de referência: "&TEXT(B1,"MMMM")&" de "&TEXT(B1,"AAAA") -> Tabela de Preços de Consultoria - mês de referência: abril de 2025
B15: Item | C15: Código | D15: Tipo | F15: Unidade | G15: Custo unitário (R$ / un)
B16: Imóveis | C16: B8951 | D16: Comercial (2,55% do CMCC - SINAPI) | F16: m² x mês | G16: 49.4
C17: B8952 | D17: Residencial (2,45% do CMCC - SINAPI) | F17: m² x mês | G17: 47.46
B18: Mobiliário | C18: B8953 | D18: Escritório | F18: ocupante x mês | G18: 467.45
C19: B8954 | D19: Residência | F19: ocupante x mês | G19: 42.11
B20: Cesta das Instalações | C20: B8955 | D20: Laboratório de asfalto | F20: mês | G20: 5952.38
C21: B8956 | D21: Laboratório de concreto | F21: mês | G21: 4642.56
C22: B8957 | D22: Laboratório de solos | F22: mês | G22: 3520.5
C23: B8958 | D23: Topografia | F23: mês | G23: 5150.27
C24: B8961 | D24: Topografia por VANT | F24: mês | G24: 866.31
B25: Custos Diversos | C25: B8959 | D25: Escritório | F25: ocupante x mês | G25: 137.55
C26: B8960 | D26: Residência | F26: ocupante x mês | G26: 204.08
B27: Fonte: FGV IBRE

Sheet Cotação Voos
A1: COTAÇÕES - IDA DIA 07/04/2024 E VOLTA DIA 11/04/2024
A2: Localidade: | B2: Juazeiro/BA
A4: Origem | B4: Destino
A5: BSB | B5: =B2 -> Juazeiro/BA | C5: Cia 1 | D5: Cia 2 | E5: Cia 3 | F5: Média
C6: 1472 | D6: 1617 | E6: 2028 | F6: =AVERAGE(C6:E6) -> 1705.666667
A31: SP | B31: =B2 -> Juazeiro/BA | C31: Cia 1 | D31: Cia 2 | E31: Cia 3 | F31: Média
C32: 992 | D32: 1102 | E32: 1245 | F32: =AVERAGE(C32:E32) -> 1113
A57: Curitiba | B57: =B2 -> Juazeiro/BA | C57: Cia 1 | D57: Cia 2 | E57: Cia 3 | F57: Média
C58: 1757 | D58: 1803 | E58: 1900 | F58: =AVERAGE(C58:E58) -> 1820
A82: Recife | B82: =B2 -> Juazeiro/BA | C82: Cia 1 | D82: Cia 2 | E82: Cia 3 | F82: Média
C83: 2148 | D83: 8058 | E83: - | F83: =AVERAGE(C83:D83) -> 5103
A106: VALOR ADOTADO: | C106: =AVERAGE(F6:F83) -> 2435.416667

Sheet AUX - MOBILIÁRIO
A5: COMPOSIÇÃO DO PREÇO UNITÁRIO MENSAL PARA ALUGUEL DE MOBILIÁRIO E EQUIPAMENTOS DE ESCRITÓRIO
A8: AQUISIÇÃO DE MOBILIÁRIO | B8: VALOR DA DEPRECIAÇÃO | F8: VALOR MENSAL TOTAL (R$)
B9: Tempo de Utilização (Anos) | C9: Meses p/Ano de Uso | D9: Percentual Residual (%) | E9: Depreciação Mensal - R$
A10: =SUM(E13:E18) -> 8584.98 | B10: 2 | C10: 12 | D10: 0.2 | E10: =ROUND((A10*(100%-D10))/(B10*C10),2) -> 286.17 | F10: =E10 -> 286.17
A12: Item | B12: Código | C12: Preço Un. | D12: Quantidade | E12: Custo de Aquisição
A13: Mesa de Escritório | B13: 11548/ORSE | C13: 345 | D13: =9+1+1 -> 11 | E13: =C13*D13 -> 3795
A14: Cadeira Giratória | B14: 11534/ORSE | C14: 280 | D14: =9+4 -> 13 | E14: =C14*D14 -> 3640
A15: Armário Escritório | B15: Cotação | C15: =G43 -> 574.99 | D15: 2 | E15: =C15*D15 -> 1149.98
A16: Aparelho Telefone | B16: Cotação | C16: =G69 -> 151.96 | D16: 0 | E16: =C16*D16 -> 0
A23: Armário para Escritório
A40: Cotação 1 | B40: Cotação 2 | C40: Cotação 3 | D40: Cotação 4 | E40: Cotação 5 | F40: CV= | G40: =_xlfn.STDEV.S(A41:E41)/AVERAGE(A41:A41) -> 0.06280088684
A41: 541.5 | B41: 620.76 | C41: 541.5 | D41: 591.2 | E41: 579.99 | F41: Média= | G41: =AVERAGE(A41:E41) -> 574.99
F42: Mediana= | G42: =MEDIAN(A41:E41) -> 579.99
F43: Menor= | G43: =SMALL(G41:G42,1) -> 574.99
A45: Data da Pesquisa: 20/01/2025
A46: https://www.google.com/search?sca_esv=3c12e2eb7b7f70e3&tbm=shop&q=armario+madeira+alto+escritorio&tbs=mr:1,price:1,ppr_min:500,ppr_max:700&sa=X&ved=0ahUKEwim5PCi5ISLAxW-ppUCHQnQD2QQvSsI5QYoAg&biw=1455&bih=695&dpr=1.1
A47: Aparelho Telefone
A66: Cotação 1 | B66: Cotação 2 | C66: Cotação 3 | D66: Cotação 4 | E66: Cotação 5 | F66: CV= | G66: =_xlfn.STDEV.S(A67:E67)/AVERAGE(A67:A67) -> 0.1742305328
A67: 122 | B67: 159.99 | C67: 138.88 | D67: 175 | E67: 163.93 | F67: Média= | G67: =AVERAGE(A67:E67) -> 151.96
F68: Mediana= | G68: =MEDIAN(A67:E67) -> 159.99
F69: Menor= | G69: =SMALL(G67:G68,1) -> 151.96
A70: Data da Pesquisa: 20/01/2025
A72: https://www.google.com/search?sca_esv=3c12e2eb7b7f70e3&tbm=shop&q=telefone+com+identificador+de+chamadas&tbs=mr:1,price:1,ppr_min:150,ppr_max:300&sa=X&ved=0ahUKEwjRubuz9ISLAxUtBbkGHaiyFkQQvSsIrwkoAQ&biw=1455&bih=695&dpr=1.1

Sheet AUX - NOTEBOOK
A5: COMPOSIÇÃO DO PREÇO UNITÁRIO MENSAL PARA ALUGUEL DE NOTEBOOK
A8: AQUISIÇÃO DE EQUIPAMENTO | B8: VALOR DA DEPRECIAÇÃO | F8: MANUTENÇÃO | H8: VALOR MENSAL TOTAL (R$)
B9: Tempo de Utilização (Anos) | C9: Meses p/Ano de Uso | D9: Percentual Residual (%) | E9: Depreciação Mensal - R$ | F9: Percentual Anual (%) | G9: Valor Mensal (R$)
A10: =SUM(E13:E18) -> 2599.057143 | B10: 2 | C10: 12 | D10: 0.25 | E10: =ROUND((A10*(100%-D10))/(B10*C10),2) -> 81.22 | F10: 0.05 | G10: =ROUND((F10*A10)/12,2) -> 10.83 | H10: =E10+G10 -> 92.05
A12: Item | B12: Código | C12: Preço Un. | D12: Quantidade | E12: Custo de Aquisição
A13: Notebook 16 GB RAM, 500 GB HDD, Tela 14" e processador 2,8 GHz | B13: Cotação | C13: =J44 -> 2599.057143 | D13: 1 | E13: =C13*D13 -> 2599.057143
A23: Notebook 16 Gb RAM, 500 GB HDD
A41: Cotação 1 | B41: Cotação 2 | C41: Cotação 3 | D41: Cotação 4 | E41: Cotação 5 | F41: Cotação 6 | G41: Cotação 7 | I41: CV= | J41: =_xlfn.STDEV.S(A42:G42)/AVERAGE(A42:G42) -> 0.1660347226
A42: 2990 | B42: 2179 | C42: 2950 | D42: 1999.02 | E42: 2276.39 | F42: 2999.99 | G42: 2799 | I42: Média= | J42: =AVERAGE(A42:G42) -> 2599.057143
I43: Mediana= | J43: =MEDIAN(A42:G42) -> 2799
I44: Menor= | J44: =SMALL(J42:J43,1) -> 2599.057143
A46: Data da Pesquisa: 20/01/2025
A47: https://www.google.com/search?sca_esv=3c12e2eb7b7f70e3&tbm=shop&q=armario+madeira+alto+escritorio&tbs=mr:1,price:1,ppr_min:500,ppr_max:700&sa=X&ved=0ahUKEwim5PCi5ISLAxW-ppUCHQnQD2QQvSsI5QYoAg&biw=1455&bih=695&dpr=1.1

Sheet AUX - IMPRESSORA
A5: COMPOSIÇÃO DO PREÇO UNITÁRIO MENSAL PARA ALUGUEL DE IMPRESSORA
A8: AQUISIÇÃO DE EQUIPAMENTO | B8: VALOR DA DEPRECIAÇÃO | F8: MANUTENÇÃO | H8: VALOR MENSAL TOTAL (R$)
B9: Tempo de Utilização (Anos) | C9: Meses p/Ano de Uso | D9: Percentual Residual (%) | E9: Depreciação Mensal - R$ | F9: Percentual Anual (%) | G9: Valor Mensal (R$)
A10: =SUM(E13:E18) -> 1528.228 | B10: 2 | C10: 12 | D10: 0.25 | E10: =ROUND((A10*(100%-D10))/(B10*C10),2) -> 47.76 | F10: 0.05 | G10: =ROUND((F10*A10)/12,2) -> 6.37 | H10: =E10+G10 -> 54.13
A12: Item | B12: Código | C12: Preço Un. | D12: Quantidade | E12: Custo de Aquisição
A13: Impressora Laser Colorida Multifuncional | B13: Cotação | C13: =G43 -> 1528.228 | D13: 1 | E13: =C13*D13 -> 1528.228
A23: Impressora Laser Multifuncional
F40: CV= | G40: =_xlfn.STDEV.S(A42:E42)/AVERAGE(A42:E42) -> 0.131051297
A41: Cotação 1 | B41: Cotação 2 | C41: Cotação 3 | D41: Cotação 4 | E41: Cotação 5 | F41: Média= | G41: =AVERAGE(A42:E42) -> 1528.228
A42: 1349.1 | B42: 1597 | C42: 1299 | D42: 1779.94 | E42: 1616.1 | F42: Mediana= | G42: =MEDIAN(A42:E42) -> 1597
F43: Menor= | G43: =SMALL(G41:G42,1) -> 1528.228
A46: Data da Pesquisa: 20/01/2025
A47: https://www.google.com/search?sca_esv=3c12e2eb7b7f70e3&tbm=shop&q=armario+madeira+alto+escritorio&tbs=mr:1,price:1,ppr_min:500,ppr_max:700&sa=X&ved=0ahUKEwim5PCi5ISLAxW-ppUCHQnQD2QQvSsI5QYoAg&biw=1455&bih=695&dpr=1.1
